{"text_format":"1","workbook":"xlsx","n_sheets":1,"sheets":["BNE EVOLUTION"],"not_rendered":{"charts":0,"images":4,"macros":1,"external_links":1,"defined_names":15,"comments":0,"pivot_tables":0},"unopened":[],"bounds":{"document_bytes":16777216,"sheet_cells":100000,"rows_first":2000,"rows_last":500,"rows_between":2000,"halvings":0,"cell_chars":16384,"cell_head_chars":4096},"cells_cut":0,"cells_raw":0,"read":"whole","date_system":"1900"}

{"sheet":"BNE EVOLUTION","index":0,"n_rows":277,"n_cols":139,"rows_kept":277,"cut":false,"hidden":false,"merged":[[185,95,185,118],[143,77,143,81],[143,82,143,86],[143,87,143,91],[143,92,143,96],[143,122,143,143],[144,1,144,66],[144,67,144,71],[144,72,144,76],[144,77,144,81],[144,82,144,86],[144,87,144,91],[144,92,144,96],[144,122,144,143],[172,0,172,74],[172,75,172,143],[173,0,173,74],[173,75,173,143],[185,129,185,133],[161,0,161,143],[162,0,162,143],[165,0,165,143],[166,0,166,143],[159,70,159,106],[159,107,159,121],[159,122,159,143],[163,0,163,143],[182,0,184,29],[182,30,182,58],[182,59,182,94],[182,95,182,142],[183,63,183,67],[139,67,139,71],[139,72,139,76],[139,77,139,81],[139,82,139,86],[139,87,139,91],[139,92,139,96],[143,67,143,71],[143,72,143,76],[145,1,145,66],[145,67,145,71],[145,72,145,76],[145,77,145,81],[145,82,145,86],[145,87,145,91],[145,92,145,96],[145,122,145,143],[119,107,145,121],[138,92,138,96],[138,122,138,143],[139,1,139,66],[139,122,139,143],[140,1,140,66],[140,122,140,143],[141,1,141,66],[141,67,141,71],[141,72,141,76],[141,77,141,81],[141,82,141,86],[141,87,141,91],[141,92,141,96],[141,122,141,143],[142,1,142,66],[142,67,142,71],[142,72,142,76],[142,77,142,81],[142,82,142,86],[142,87,142,91],[142,92,142,96],[142,122,142,143],[143,1,143,66],[135,1,135,66],[135,67,135,71],[135,72,135,76],[135,77,135,81],[135,82,135,86],[135,87,135,91],[135,92,135,96],[135,122,135,143],[136,1,136,66],[136,67,136,71],[136,72,136,76],[136,77,136,81],[136,82,136,86],[136,87,136,91],[136,92,136,96],[136,122,136,143],[137,1,137,66],[137,67,137,71],[137,72,137,76],[137,77,137,81],[137,82,137,86],[137,87,137,91],[137,92,137,96],[137,122,137,143],[138,1,138,66],[138,67,138,71],[138,72,138,76],[138,77,138,81],[138,82,138,86],[138,87,138,91],[125,122,125,143],[126,1,126,66],[128,1,128,66],[129,1,129,66],[129,67,129,71],[129,72,129,76],[129,77,129,81],[129,82,129,86],[129,87,129,91],[129,92,129,96],[129,122,129,143],[131,1,131,66],[131,122,131,143],[132,1,132,66],[133,1,133,66],[134,1,134,66],[134,122,134,143],[116,97,145,106],[117,87,117,91],[117,92,117,96],[117,122,117,143],[118,1,118,66],[118,67,118,71],[118,72,118,76],[118,77,118,81],[118,82,118,86],[122,1,122,66],[123,1,123,66],[123,67,123,71],[123,72,123,76],[123,77,123,81],[123,82,123,86],[123,87,123,91],[123,92,123,96],[123,122,123,143],[122,82,122,86],[122,87,122,91],[122,92,122,96],[122,122,122,143],[120,92,120,96],[121,122,121,143],[122,67,122,71],[122,72,122,76],[122,77,122,81],[125,1,125,66],[31,206,31,210],[84,206,84,210],[85,206,85,210],[147,122,147,143],[151,122,151,143],[41,131,44,143],[48,131,51,143],[55,131,58,143],[218,119,218,130],[218,131,218,142],[222,0,222,142],[223,0,223,142],[226,3,226,33],[226,38,226,59],[218,71,218,76],[218,77,218,82],[218,83,218,88],[218,89,218,94],[218,95,218,106],[218,107,218,118],[218,0,218,29],[218,30,218,38],[218,39,218,54],[218,55,218,58],[218,59,218,64],[218,65,218,70],[217,83,217,88],[217,89,217,94],[164,1,164,143],[217,95,217,106],[217,107,217,118],[217,119,217,130],[217,131,217,142],[216,119,216,130],[216,131,216,142],[217,0,217,29],[217,30,217,38],[217,39,217,54],[217,55,217,58],[217,59,217,64],[217,65,217,70],[217,71,217,76],[217,77,217,82],[216,71,216,76],[216,77,216,82],[216,83,216,88],[216,89,216,94],[216,95,216,106],[216,107,216,118],[216,0,216,29],[216,30,216,38],[216,39,216,54],[216,55,216,58],[216,59,216,64],[216,65,216,70],[215,83,215,88],[215,89,215,94],[215,95,215,106],[215,107,215,118],[215,119,215,130],[215,131,215,142],[214,119,214,130],[214,131,214,142],[215,0,215,29],[215,30,215,38],[215,39,215,54],[215,55,215,58],[215,59,215,64],[215,65,215,70],[215,71,215,76],[215,77,215,82],[214,71,214,76],[214,77,214,82],[214,83,214,88],[214,89,214,94],[214,95,214,106],[214,107,214,118],[214,0,214,29],[214,30,214,38],[214,39,214,54],[214,55,214,58],[214,59,214,64],[214,65,214,70],[213,83,213,88],[213,89,213,94],[213,95,213,106],[213,107,213,118],[213,119,213,130],[213,131,213,142],[212,119,212,130],[212,131,212,142],[213,0,213,29],[213,30,213,38],[213,39,213,54],[213,55,213,58],[213,59,213,64],[213,65,213,70],[213,71,213,76],[213,77,213,82],[212,71,212,76],[212,77,212,82],[212,83,212,88],[212,89,212,94],[212,95,212,106],[212,107,212,118],[212,0,212,29],[212,30,212,38],[212,39,212,54],[212,55,212,58],[212,59,212,64],[212,65,212,70],[211,83,211,88],[211,89,211,94],[211,95,211,106],[211,107,211,118],[211,119,211,130],[211,131,211,142],[210,119,210,130],[210,131,210,142],[211,0,211,29],[211,30,211,38],[211,39,211,54],[211,55,211,58],[211,59,211,64],[211,65,211,70],[211,71,211,76],[211,77,211,82],[210,71,210,76],[210,77,210,82],[210,83,210,88],[210,89,210,94],[210,95,210,106],[210,107,210,118],[210,0,210,29],[210,30,210,38],[210,39,210,54],[210,55,210,58],[210,59,210,64],[210,65,210,70],[209,83,209,88],[209,89,209,94],[209,95,209,106],[209,107,209,118],[209,119,209,130],[209,131,209,142],[208,119,208,130],[208,131,208,142],[209,0,209,29],[209,30,209,38],[209,39,209,54],[209,55,209,58],[209,59,209,64],[209,65,209,70],[209,71,209,76],[209,77,209,82],[208,71,208,76],[208,77,208,82],[208,83,208,88],[208,89,208,94],[208,95,208,106],[208,107,208,118],[208,0,208,29],[208,30,208,38],[208,39,208,54],[208,55,208,58],[208,59,208,64],[208,65,208,70],[207,83,207,88],[207,89,207,94],[207,95,207,106],[207,107,207,118],[207,119,207,130],[207,131,207,142],[206,119,206,130],[206,131,206,142],[207,0,207,29],[207,30,207,38],[207,39,207,54],[207,55,207,58],[207,59,207,64],[207,65,207,70],[207,71,207,76],[207,77,207,82],[206,71,206,76],[206,77,206,82],[206,83,206,88],[206,89,206,94],[206,95,206,106],[206,107,206,118],[206,0,206,29],[206,30,206,38],[206,39,206,54],[206,55,206,58],[206,59,206,64],[206,65,206,70],[205,83,205,88],[205,89,205,94],[205,95,205,106],[205,107,205,118],[205,119,205,130],[205,131,205,142],[204,119,204,130],[204,131,204,142],[205,0,205,29],[205,30,205,38],[205,39,205,54],[205,55,205,58],[205,59,205,64],[205,65,205,70],[205,71,205,76],[205,77,205,82],[204,71,204,76],[204,77,204,82],[204,83,204,88],[204,89,204,94],[204,95,204,106],[204,107,204,118],[204,0,204,29],[204,30,204,38],[204,39,204,54],[204,55,204,58],[204,59,204,64],[204,65,204,70],[203,83,203,88],[203,89,203,94],[203,95,203,106],[203,107,203,118],[203,119,203,130],[203,131,203,142],[202,119,202,130],[202,131,202,142],[203,0,203,29],[203,30,203,38],[203,39,203,54],[203,55,203,58],[203,59,203,64],[203,65,203,70],[203,71,203,76],[203,77,203,82],[202,71,202,76],[202,77,202,82],[202,83,202,88],[202,89,202,94],[202,95,202,106],[202,107,202,118],[202,0,202,29],[202,30,202,38],[202,39,202,54],[202,55,202,58],[202,59,202,64],[202,65,202,70],[201,83,201,88],[201,89,201,94],[201,95,201,106],[201,107,201,118],[201,119,201,130],[201,131,201,142],[200,119,200,130],[200,131,200,142],[201,0,201,29],[201,30,201,38],[201,39,201,54],[201,55,201,58],[201,59,201,64],[201,65,201,70],[201,71,201,76],[201,77,201,82],[200,71,200,76],[200,77,200,82],[200,83,200,88],[200,89,200,94],[200,95,200,106],[200,107,200,118],[200,0,200,29],[200,30,200,38],[200,39,200,54],[200,55,200,58],[200,59,200,64],[200,65,200,70],[199,83,199,88],[199,89,199,94],[199,95,199,106],[199,107,199,118],[199,119,199,130],[199,131,199,142],[198,119,198,130],[198,131,198,142],[199,0,199,29],[199,30,199,38],[199,39,199,54],[199,55,199,58],[199,59,199,64],[199,65,199,70],[199,71,199,76],[199,77,199,82],[198,71,198,76],[198,77,198,82],[198,83,198,88],[198,89,198,94],[198,95,198,106],[198,107,198,118],[198,0,198,29],[198,30,198,38],[198,39,198,54],[198,55,198,58],[198,59,198,64],[198,65,198,70],[197,83,197,88],[197,89,197,94],[197,95,197,106],[197,107,197,118],[197,119,197,130],[197,131,197,142],[196,119,196,130],[196,131,196,142],[197,0,197,29],[197,30,197,38],[197,39,197,54],[197,55,197,58],[197,59,197,64],[197,65,197,70],[197,71,197,76],[197,77,197,82],[196,71,196,76],[196,77,196,82],[196,83,196,88],[196,89,196,94],[196,95,196,106],[196,107,196,118],[196,0,196,29],[196,30,196,38],[196,39,196,54],[196,55,196,58],[196,59,196,64],[196,65,196,70],[195,83,195,88],[195,89,195,94],[195,95,195,106],[195,107,195,118],[195,119,195,130],[195,131,195,142],[194,119,194,130],[194,131,194,142],[195,0,195,29],[195,30,195,38],[195,39,195,54],[195,55,195,58],[195,59,195,64],[195,65,195,70],[195,71,195,76],[195,77,195,82],[194,71,194,76],[194,77,194,82],[194,83,194,88],[194,89,194,94],[194,95,194,106],[194,107,194,118],[194,0,194,29],[194,30,194,38],[194,39,194,54],[194,55,194,58],[194,59,194,64],[194,65,194,70],[193,83,193,88],[193,89,193,94],[193,95,193,106],[193,107,193,118],[193,119,193,130],[193,131,193,142],[192,119,192,130],[192,131,192,142],[193,0,193,29],[193,30,193,38],[193,39,193,54],[193,55,193,58],[193,59,193,64],[193,65,193,70],[193,71,193,76],[193,77,193,82],[192,71,192,76],[192,77,192,82],[192,83,192,88],[192,89,192,94],[192,95,192,106],[192,107,192,118],[192,0,192,29],[192,30,192,38],[192,39,192,54],[192,55,192,58],[192,59,192,64],[192,65,192,70],[191,83,191,88],[191,89,191,94],[191,95,191,106],[191,107,191,118],[191,119,191,130],[191,131,191,142],[190,119,190,130],[190,131,190,142],[191,0,191,29],[191,30,191,38],[191,39,191,54],[191,55,191,58],[191,59,191,64],[191,65,191,70],[191,71,191,76],[191,77,191,82],[190,71,190,76],[190,77,190,82],[190,83,190,88],[190,89,190,94],[190,95,190,106],[190,107,190,118],[190,0,190,29],[190,30,190,38],[190,39,190,54],[190,55,190,58],[190,59,190,64],[190,65,190,70],[189,83,189,88],[189,89,189,94],[189,95,189,106],[189,107,189,118],[189,119,189,130],[189,131,189,142],[188,119,188,130],[188,131,188,142],[189,0,189,29],[189,30,189,38],[189,39,189,54],[189,55,189,58],[189,59,189,64],[189,65,189,70],[189,71,189,76],[189,77,189,82],[188,71,188,76],[188,77,188,82],[188,83,188,88],[188,89,188,94],[188,95,188,106],[188,107,188,118],[188,0,188,29],[188,30,188,38],[188,39,188,54],[188,55,188,58],[188,59,188,64],[188,65,188,70],[186,0,187,23],[186,24,187,29],[183,55,187,58],[183,39,187,54],[183,30,187,38],[184,89,187,94],[184,83,187,88],[184,77,187,82],[183,71,187,76],[184,65,187,70],[184,59,187,64],[168,0,168,74],[168,75,168,143],[169,0,169,74],[169,75,169,143],[170,0,170,74],[170,75,170,143],[186,95,187,106],[186,107,186,112],[186,113,186,118],[187,107,187,112],[187,113,187,118],[186,119,187,130],[186,131,186,136],[186,137,186,142],[187,131,187,136],[187,137,187,142],[185,134,185,142],[183,80,183,84],[183,95,184,118],[183,119,184,142],[177,0,178,96],[174,0,174,74],[174,75,174,143],[175,0,175,74],[175,75,175,143],[176,0,176,74],[176,75,176,143],[171,0,171,74],[171,75,171,143],[149,122,149,128],[149,129,149,135],[149,136,149,142],[149,107,149,113],[149,114,149,121],[151,87,151,91],[151,92,151,96],[151,97,151,106],[151,107,151,113],[151,114,151,121],[150,87,150,91],[150,92,150,96],[150,97,150,106],[150,122,150,143],[151,0,151,66],[151,67,151,71],[151,72,151,76],[151,77,151,81],[151,82,151,86],[149,87,149,91],[149,92,149,96],[149,97,149,106],[150,0,150,66],[150,67,150,71],[150,72,150,76],[150,77,150,81],[150,82,150,86],[150,107,150,113],[150,114,150,121],[148,87,148,91],[148,92,148,96],[148,97,148,106],[149,0,149,66],[149,67,149,71],[149,72,149,76],[149,77,149,81],[149,82,149,86],[147,92,147,96],[147,97,147,106],[147,107,147,113],[147,114,147,121],[148,0,148,66],[148,67,148,71],[148,72,148,76],[148,77,148,81],[148,82,148,86],[134,92,134,96],[146,0,146,143],[147,0,147,66],[147,67,147,71],[147,72,147,76],[147,77,147,81],[147,82,147,86],[147,87,147,91],[134,67,134,71],[134,72,134,76],[134,77,134,81],[134,82,134,86],[134,87,134,91],[132,122,132,143],[133,122,133,143],[116,107,118,121],[116,122,116,143],[117,1,117,66],[117,67,117,71],[117,72,117,76],[117,77,117,81],[117,82,117,86],[131,87,131,91],[131,92,131,96],[132,67,132,71],[132,72,132,76],[132,77,132,81],[132,82,132,86],[132,87,132,91],[132,92,132,96],[130,122,130,143],[131,67,131,71],[131,72,131,76],[131,77,131,81],[131,82,131,86],[126,87,126,91],[126,92,126,96],[126,122,126,143],[124,122,124,143],[125,67,125,71],[125,72,125,76],[125,77,125,81],[125,82,125,86],[125,87,125,91],[127,122,127,143],[128,67,128,71],[128,72,128,76],[128,77,128,81],[128,82,128,86],[128,87,128,91],[128,92,128,96],[128,122,128,143],[125,92,125,96],[126,67,126,71],[126,72,126,76],[126,77,126,81],[126,82,126,86],[115,92,115,96],[116,0,116,66],[112,97,112,106],[112,107,112,121],[112,122,112,143],[114,0,114,143],[115,0,115,66],[115,67,115,71],[115,72,115,76],[115,77,115,81],[115,82,115,86],[115,87,115,91],[120,67,120,71],[120,72,120,76],[120,77,120,81],[120,82,120,86],[120,87,120,91],[118,87,118,91],[118,92,118,96],[118,122,118,143],[119,1,119,66],[119,67,119,71],[119,72,119,76],[119,77,119,81],[119,82,119,86],[119,87,119,91],[119,92,119,96],[119,122,119,143],[120,1,120,66],[120,122,120,143],[107,133,107,137],[107,138,107,142],[110,0,110,143],[112,0,112,66],[112,67,112,71],[112,72,112,76],[112,77,112,81],[112,82,112,86],[112,87,112,91],[112,92,112,96],[107,64,107,68],[107,72,107,112],[107,113,107,117],[107,118,107,122],[107,123,107,127],[107,128,107,132],[107,0,107,38],[107,39,107,43],[107,44,107,48],[107,49,107,53],[107,54,107,58],[107,59,107,63],[106,113,106,117],[106,118,106,122],[106,123,106,127],[106,128,106,132],[106,133,106,137],[106,138,106,142],[105,133,105,137],[105,138,105,142],[106,0,106,38],[106,39,106,43],[106,44,106,48],[106,49,106,53],[106,54,106,58],[106,59,106,63],[106,64,106,68],[106,72,106,112],[105,64,105,68],[105,72,105,112],[105,113,105,117],[105,118,105,122],[105,123,105,127],[105,128,105,132],[105,0,105,38],[105,39,105,43],[105,44,105,48],[105,49,105,53],[105,54,105,58],[105,59,105,63],[104,113,104,117],[104,118,104,122],[104,123,104,127],[104,128,104,132],[104,133,104,137],[104,138,104,142],[103,133,103,137],[103,138,103,142],[104,0,104,38],[104,39,104,43],[104,44,104,48],[104,49,104,53],[104,54,104,58],[104,59,104,63],[104,64,104,68],[104,72,104,112],[103,64,103,68],[103,72,103,112],[103,113,103,117],[103,118,103,122],[103,123,103,127],[103,128,103,132],[103,0,103,38],[103,39,103,43],[103,44,103,48],[103,49,103,53],[103,54,103,58],[103,59,103,63],[102,113,102,117],[102,118,102,122],[102,123,102,127],[102,128,102,132],[102,133,102,137],[102,138,102,142],[100,133,100,137],[100,138,100,142],[102,0,102,38],[102,39,102,43],[102,44,102,48],[102,49,102,53],[102,54,102,58],[102,59,102,63],[102,64,102,68],[102,72,102,112],[100,64,100,68],[100,72,100,112],[100,113,100,117],[100,118,100,122],[100,123,100,127],[100,128,100,132],[100,0,100,38],[100,39,100,43],[100,44,100,48],[100,49,100,53],[100,54,100,58],[100,59,100,63],[99,113,99,117],[99,118,99,122],[99,123,99,127],[99,128,99,132],[99,133,99,137],[99,138,99,142],[98,133,98,137],[98,138,98,142],[99,0,99,38],[99,39,99,43],[99,44,99,48],[99,49,99,53],[99,54,99,58],[99,59,99,63],[99,64,99,68],[99,72,99,112],[98,64,98,68],[98,72,98,112],[98,113,98,117],[98,118,98,122],[98,123,98,127],[98,128,98,132],[98,0,98,38],[98,39,98,43],[98,44,98,48],[98,49,98,53],[98,54,98,58],[98,59,98,63],[97,113,97,117],[97,118,97,122],[97,123,97,127],[97,128,97,132],[97,133,97,137],[97,138,97,142],[96,133,96,137],[96,138,96,142],[97,0,97,38],[97,39,97,43],[97,44,97,48],[97,49,97,53],[97,54,97,58],[97,59,97,63],[97,64,97,68],[97,72,97,112],[96,64,96,68],[96,72,96,112],[96,113,96,117],[96,118,96,122],[96,123,96,127],[96,128,96,132],[96,0,96,38],[96,39,96,43],[96,44,96,48],[96,49,96,53],[96,54,96,58],[96,59,96,63],[95,113,95,117],[95,118,95,122],[95,123,95,127],[95,128,95,132],[95,133,95,137],[95,138,95,142],[91,133,91,137],[91,138,91,142],[95,0,95,38],[95,39,95,43],[95,44,95,48],[95,49,95,53],[95,54,95,58],[95,59,95,63],[95,64,95,68],[95,72,95,112],[91,64,91,68],[91,72,91,112],[91,113,91,117],[91,118,91,122],[91,123,91,127],[91,128,91,132],[91,0,91,38],[91,39,91,43],[91,44,91,48],[91,49,91,53],[91,54,91,58],[91,59,91,63],[90,113,90,117],[90,118,90,122],[90,123,90,127],[90,128,90,132],[90,133,90,137],[90,138,90,142],[89,133,89,137],[89,138,89,142],[90,0,90,38],[90,39,90,43],[90,44,90,48],[90,49,90,53],[90,54,90,58],[90,59,90,63],[90,64,90,68],[90,72,90,112],[89,64,89,68],[89,72,89,112],[89,113,89,117],[89,118,89,122],[89,123,89,127],[89,128,89,132],[89,0,89,38],[89,39,89,43],[89,44,89,48],[89,49,89,53],[89,54,89,58],[89,59,89,63],[76,0,76,3],[76,12,76,61],[76,64,77,76],[88,113,88,117],[88,118,88,122],[88,123,88,127],[88,128,88,132],[88,133,88,137],[88,138,88,142],[87,133,87,137],[87,138,87,142],[88,0,88,38],[88,39,88,43],[88,44,88,48],[88,49,88,53]],"merged_total":1284,"flags":["merged_cut"]}
[]
[]
[]
[null,null,null,null,null,"Ouverture de contrat"]
[]
[null,null,null,null,null,"Ajout de service / Compte / Mandataire"]
[]
[null,null,null,null,null,"Suppression de service / compte / Mandataire"]
[]
[]
[]
["Réservé BNP Paribas : Numéro WFT : "]
["Version : 141210"]
["INFORMATIONS GROUPES D'AGENCES"]
[]
["Groupe d'Agences",null,null,null,null,null,null,null,null,null,null,null,null,null,"ESPACE ENTREPRENEURS LE MARAIS BERCY",null,null,null,null,null,null,null,null,null,null,null,null,null,null,null,null,null,null,null,null,null,null,null,null,null,null,null,null,null,null,null,null,null,null,null,null,null,null,null,null,null,null,null,null,null,null,null,null,null,null,"(ou Agence de domiciliation) :"]
["Code ACI : ",null,null,null,null,null,null,null,"Z00823M"]
["Chargé d'Affaires Entrepreneurs",null,null,null,null,null,null,null,null,null,null,null,null,null,null,null,null,null,null,null,null,null,null,null,null,null,null,null,null,null,null,null,null,null,null,null,null,null,null,null,null,null,null,null,null,null,null,null,null,null,null,null,null,null,null,null,null,null,null,null,null,null,null,null,null,null,null,null,null,null,null,null,"Conseiller Flux et Moyens de Paiement"]
["Nom :",null,null,null,"VARADY Ivan",null,null,null,null,null,null,null,null,null,null,null,null,null,null,null,null,null,null,null,null,null,null,null,null,null,null,null,null,null,null,null,null,null,null,null,null,null,null,null,null,null,null,null,null,null,null,null,null,null,null,null,null,null,null,null,null,null,null,null,null,null,null,null,null,null,null,null,"Nom :",null,null,null,null,null,null,null,null,"BOMBARDI Catherine"]
["Tel :","01 58 28 17 12",null,null,null,null,null,null,null,null,null,null,null,null,null,null,null,null,null,null,null,null,null,null,null,null,null,null,null,null,null,null,null,null,null,null,null,null,null,null,"Fax :",null,null,null,null,null,null,null,null,null,null,null,null,null,null,null,null,null,null,null,null,null,null,null,null,null,null,null,null,null,null,null,"Tel :",null,null,null,null,"01-58-28-17-41",null,null,null,null,null,null,null,null,null,null,null,null,null,null,null,null,null,null,null,null,null,null,null,null,null,null,null,null,null,null,null,null,null,null,"Fax : "]
["Mail : ",null,null,null,"ivan.varady@bnpparibas.com",null,null,null,null,null,null,null,null,null,null,null,null,null,null,null,null,null,null,null,null,null,null,null,null,null,null,null,null,null,null,null,null,null,null,null,null,null,null,null,null,null,null,null,null,null,null,null,null,null,null,null,null,null,null,null,null,null,null,null,null,null,null,null,null,null,null,null,"Mail :",null,null,null,null,null,null,"catherine.bombardi@bnpparibas.com"]
[]
["INFORMATIONS CLIENT"]
["Société",null,null,null,null,null,null,null,null,null,null,null,null,null,null,null,null,null,null,null,null,null,":","SCI MICHEL THOMAS",null,null,null,null,null,null,null,null,null,null,null,null,null,null,null,null,null,null,null,null,null,null,null,null,null,null,null,null,null,null,null,null,null,null,null,null,null,null,null,null,null,null,null,null,null,null,null,null,null,"Siège/Identifiant SGI",null,null,null,null,null,null,null,null,null,null,null,null,null,null,null,null,null,null,null,null,null,null,":","0823     080 425 479 504"]
["Compte de facturation",null,null,null,null,null,null,null,null,null,null,null,null,null,null,null,null,null,null,null,null,null,":","0827    215792/42",null,null,null,null,null,null,null,null,null,null,null,null,null,null,null,null,null,null,null,null,null,null,null,null,null,null,null,null,null,null,null,null,null,null,null,null,null,null,null,null,null,null,null,null,null,null,null,null,null,"Représentant légal société / Client personne physique /\nUtilisateur principal (UP)"]
["Adresse (1)",null,null,null,null,null,null,null,null,null,null,null,null,null,null,null,null,null,null,null,null,null,":","C/O Mr THOMAS Thibault",null,null,null,null,null,null,null,null,null,null,null,null,null,null,null,null,null,null,null,null,null,null,null,null,null,null,null,null,null,null,null,null,null,null,null,null,null,null,null,null,null,null,null,null,null,null,null,null,null,"Nom, Prénom",null,null,null,null,null,null,null,null,null,null,null,null,null,null,null,null,null,null,null,null,null,null,":","THOMAS Thibault"]
["Adresse (2)",null,null,null,null,null,null,null,null,null,null,null,null,null,null,null,null,null,null,null,null,null,":","9 imp Les Hauts de Serignan",null,null,null,null,null,null,null,null,null,null,null,null,null,null,null,null,null,null,null,null,null,null,null,null,null,null,null,null,null,null,null,null,null,null,null,null,null,null,null,null,null,null,null,null,null,null,null,null,null,"Date de naissance",null,null,null,null,null,null,null,null,null,null,null,null,null,null,null,null,null,null,null,null,null,null,":"]
["Code Postal / Commune",null,null,null,null,null,null,null,null,null,null,null,null,null,null,null,null,null,null,null,null,null,":","34410  SERIGNAN",null,null,null,null,null,null,null,null,null,null,null,null,null,null,null,null,null,null,null,null,null,null,null,null,null,null,null,null,null,null,null,null,null,null,null,null,null,null,null,null,null,null,null,null,null,null,null,null,null,"Fonction",null,null,null,null,null,null,null,null,null,null,null,null,null,null,null,null,null,null,null,null,null,null,":","Gérant"]
["Num RCS / SIREN",null,null,null,null,null,null,null,null,null,null,null,null,null,null,null,null,null,null,null,null,null,":",378798995,null,null,null,null,null,null,null,null,null,null,null,null,null,null,null,null,null,null,null,null,null,null,null,null,null,null,null,null,null,null,null,null,null,null,null,null,null,null,null,null,null,null,null,null,null,null,null,null,null,"Téléphone",null,null,null,null,null,null,null,null,null,null,null,null,null,null,null,null,null,null,null,null,null,null,":"]
[null,null,null,null,null,null,null,null,null,null,null,null,null,null,null,null,null,null,null,null,null,null,null,null,null,null,null,null,null,null,null,null,null,null,null,null,null,null,null,null,null,null,null,null,null,null,null,null,null,null,null,null,null,null,null,null,null,null,null,null,null,null,null,null,null,null,null,null,null,null,null,null,null,"Mail ",null,null,null,null,null,null,null,null,null,null,null,null,null,null,null,null,null,null,null,null,null,null,":","scimt@sfr.fr"]
[]
["CHOIX DU MODE D'AUTHENTIFICATION\nVALIDATION DE L'UTILISATEUR PRINCIPAL (UP)- DESIGNATION DES MANDATAIRES (M)"]
[]
["Joindre la copie d’une pièce nationale d’identité en cours de validité avec photographie pour  l'utilisateur principal ou tout nouveau mandataire et préciser : \n1/ Le mode d'authentification souhaité pour ce(s) dernier(s) lors de la validation des ordres\n2/ Le cas échéant, le support à commander (Lecteur sans fil, Carte Transfert Sécurisé, Clé USB Net Identity ou 3 SKey"]
[]
["IDENTIFICATION DES MANDATAIRES",null,null,null,null,null,null,null,null,null,null,null,null,null,null,null,null,null,null,null,null,null,null,null,null,null,null,null,null,null,null,null,null,null,null,null,null,null,null,null,null,null,null,null,null,null,null,null,null,null,null,null,null,null,null,null,null,null,null,null,null,null,null,null,"DEFINITION\nMODE AUTHENTIFICATION ET VALIDATION DES ORDRES",null,null,null,null,null,null,null,null,null,null,null,null,null,null,null,null,null,null,null,null,null,null,null,null,null,null,null,null,null,null,null,null,null,null,null,null,null,null,null,null,"COMMANDE DE SUPPORT\nsi le mandataire n'est pas équipé"]
[]
[null,null,null,null,null,null,null,null,null,null,null,null,null,null,null,null,null,null,null,null,null,null,null,null,null,null,null,null,null,null,null,null,null,null,null,null,null,null,null,null,null,null,null,null,null,null,null,null,null,null,null,null,null,null,null,null,null,null,null,null,null,null,null,null,"ID Mot de Passe ",null,null,null,null,null,null,null,null,null,null,null,null,"Carte transfert sécurisé",null,null,null,null,"Carte Transfert Sécurisé",null,null,null,null,null," Clé USB\nNet Identity",null,"Certificat USB",null,null,null,null,null,null,null,null,null,null,null,null,null,null," Lecteur sans fil",null,null,null,null,null,null,null,null,null,null,null,null,"Carte Transfert Sécurisé",null,null,null,null,null,null,null,null,null,null," Clé USB\nNet Identity",null,"Certificat électronique"]
[]
[null,null,null,null,"Nom  : ",null,null,null,null,null,null,null,"THOMAS",null,null,null,null,null,null,null,null,null,null,null,null,null,null,null,null,null,null,null,null,null,null,null,null,null,null,null,null,null,null,null,null,null,null,null,null,null,null,null,null,null,null,null,null,null,null,null,null,null,null,null,"£",null,null,null,null,null,null,null,null,null,null,null,null,"R",null,null,null,null,null,null,null,null,null,null,null,null,"£",null,null,null,null,null,null,null,null,null,null,null,null,null,null,"Club",null,null,null,null,null,"Thin",null,null,null,null,null,null,"R",null,null,null,null,null,null,null,null,null,null,null,null,"£"]
["M1\n(ou UP)","Prénom :",null,null,null,null,null,null,null,null,null,null,"Thibault",null,null,null,null,null,null,null,null,null,null,null,null,null,null,null,null,null,null,null,null,null,null,null,null,null,null,null,null,null,null,null,null,null,null,null,null,null,null,null,null,null,null,null,null,null,null,null,null,null,null,null,null,null,null,null,null,null,null,null,null,null,null,null,null,null,null,null,null,null,null,null,null,null,null,null,null,null,null,null,null,null,null,null,null,null,null,null,null,null,null,null,null,"R",null,null,null,null,null,"£"]
[null,"Mail :",null,null,null,null,null,null,{"$f":"IF([1]Données!$J57<>\"\",[1]Données!$J57,\"\")","v":""},null,null,null,null,null,null,null,null,null,null,null,null,null,null,null,null,null,null,null,null,null,null,null,null,null,null,null,null,null,null,null,null,null,null,null,null,null,null,null,null,null,null,null,null,null,null,null,null,null,null,null,null,null,null,null,null,null,null,null,null,null,null,null,null,null,null,null,null,null,null,null,null,null,null,null,null,null,null,null,null,null,null,null,null,null,null,null,null,null,null,null,null,null,null,null,null,"25€ H.T\n\noffert",null,null,null,null,null,null,null,null,null,null,null,null,"40€ H.T\npour 2 ans\nofferte",null,null,null,null,null,null,null,null,null,null,null,null,"à souscrire séparement"]
[null,"Numéro abonné si existant : ",null,null,null,null,null,null,null,null,null,null,null,null,null,null,null,null,null,null,null,null,null,null,null,null,null,null,null,null,null,null,null,null,null,null,null,null,25584835]
[null,"Adresse :"]
[]
[]
[null,null,null,null,"Nom  : ",null,null,null,null,null,null,null,null,null,null,null,null,null,null,null,null,null,null,null,null,null,null,null,null,null,null,null,null,null,null,null,null,null,null,null,null,null,null,null,null,null,null,null,null,null,null,null,null,null,null,null,null,null,null,null,null,null,null,null,"£",null,null,null,null,null,null,null,null,null,null,null,null,"£",null,null,null,null,null,null,null,null,null,null,null,null,"£",null,null,null,null,null,null,null,null,null,null,null,null,null,null,"Club",null,null,null,null,null,"Thin",null,null,null,null,null,null,"£",null,null,null,null,null,null,null,null,null,null,null,null,"£"]
["M2","Prénom :",null,null,null,null,null,null,null,null,null,null,null,null,null,null,null,null,null,null,null,null,null,null,null,null,null,null,null,null,null,null,null,null,null,null,null,null,null,null,null,null,null,null,null,null,null,null,null,null,null,null,null,null,null,null,null,null,null,null,null,null,null,null,null,null,null,null,null,null,null,null,null,null,null,null,null,null,null,null,null,null,null,null,null,null,null,null,null,null,null,null,null,null,null,null,null,null,null,null,null,null,null,null,null,"£",null,null,null,null,null,"£"]
[null,"Mail :",null,null,null,null,null,null,null,null,null,null,null,null,null,null,null,null,null,null,null,null,null,null,null,null,null,null,null,null,null,null,null,null,null,null,null,null,null,null,null,null,null,null,null,null,null,null,null,null,null,null,null,null,null,null,null,null,null,null,null,null,null,null,null,null,null,null,null,null,null,null,null,null,null,null,null,null,null,null,null,null,null,null,null,null,null,null,null,null,null,null,null,null,null,null,null,null,null,null,null,null,null,null,null,"25€ H.T",null,null,null,null,null,null,null,null,null,null,null,null,"40€ H.T\npour 2 ans",null,null,null,null,null,null,null,null,null,null,null,null,"à souscrire séparement"]
[null,"Numéro abonné si existant : "]
[null,"Adresse :"]
[]
[]
[null,null,null,null,"Nom  : ",null,null,null,null,null,null,null,null,null,null,null,null,null,null,null,null,null,null,null,null,null,null,null,null,null,null,null,null,null,null,null,null,null,null,null,null,null,null,null,null,null,null,null,null,null,null,null,null,null,null,null,null,null,null,null,null,null,null,null,"£",null,null,null,null,null,null,null,null,null,null,null,null,"£",null,null,null,null,null,null,null,null,null,null,null,null,"£",null,null,null,null,null,null,null,null,null,null,null,null,null,null,"Club",null,null,null,null,null,"Thin",null,null,null,null,null,null,"£",null,null,null,null,null,null,null,null,null,null,null,null,"£"]
["M3","Prénom :",null,null,null,null,null,null,null,null,null,null,null,null,null,null,null,null,null,null,null,null,null,null,null,null,null,null,null,null,null,null,null,null,null,null,null,null,null,null,null,null,null,null,null,null,null,null,null,null,null,null,null,null,null,null,null,null,null,null,null,null,null,null,null,null,null,null,null,null,null,null,null,null,null,null,null,null,null,null,null,null,null,null,null,null,null,null,null,null,null,null,null,null,null,null,null,null,null,null,null,null,null,null,null,"£",null,null,null,null,null,"£"]
[null,"Mail :",null,null,null,null,null,null,null,null,null,null,null,null,null,null,null,null,null,null,null,null,null,null,null,null,null,null,null,null,null,null,null,null,null,null,null,null,null,null,null,null,null,null,null,null,null,null,null,null,null,null,null,null,null,null,null,null,null,null,null,null,null,null,null,null,null,null,null,null,null,null,null,null,null,null,null,null,null,null,null,null,null,null,null,null,null,null,null,null,null,null,null,null,null,null,null,null,null,null,null,null,null,null,null,"25€ H.T",null,null,null,null,null,null,null,null,null,null,null,null,"40€ H.T\npour 2 ans",null,null,null,null,null,null,null,null,null,null,null,null,"à souscrire séparement"]
[null,"Numéro abonné si existant : "]
[null,"Adresse :"]
[]
[]
["£","Ajouter des mandataires"]
[]
[null,null,null,null,"Nom  : ",null,null,null,null,null,null,null,null,null,null,null,null,null,null,null,null,null,null,null,null,null,null,null,null,null,null,null,null,null,null,null,null,null,null,null,null,null,null,null,null,null,null,null,null,null,null,null,null,null,null,null,null,null,null,null,null,null,null,null,"£",null,null,null,null,null,null,null,null,null,null,null,null,"£",null,null,null,null,null,null,null,null,null,null,null,null,"£",null,null,null,null,null,null,null,null,null,null,null,null,null,null,"Club",null,null,null,null,null,"Thin",null,null,null,null,null,null,"£",null,null,null,null,null,null,null,null,null,null,null,null,"£"]
["M4","Prénom :",null,null,null,null,null,null,null,null,null,null,null,null,null,null,null,null,null,null,null,null,null,null,null,null,null,null,null,null,null,null,null,null,null,null,null,null,null,null,null,null,null,null,null,null,null,null,null,null,null,null,null,null,null,null,null,null,null,null,null,null,null,null,null,null,null,null,null,null,null,null,null,null,null,null,null,null,null,null,null,null,null,null,null,null,null,null,null,null,null,null,null,null,null,null,null,null,null,null,null,null,null,null,null,"£",null,null,null,null,null,"£"]
[null,"Mail :",null,null,null,null,null,null,null,null,null,null,null,null,null,null,null,null,null,null,null,null,null,null,null,null,null,null,null,null,null,null,null,null,null,null,null,null,null,null,null,null,null,null,null,null,null,null,null,null,null,null,null,null,null,null,null,null,null,null,null,null,null,null,null,null,null,null,null,null,null,null,null,null,null,null,null,null,null,null,null,null,null,null,null,null,null,null,null,null,null,null,null,null,null,null,null,null,null,null,null,null,null,null,null,"25€ H.T",null,null,null,null,null,null,null,null,null,null,null,null,"40€ H.T\npour 2 ans",null,null,null,null,null,null,null,null,null,null,null,null,"à souscrire séparement"]
[null,"Numéro abonné si existant : "]
[null,"Adresse :"]
[]
[]
[null,null,null,null,"Nom  : ",null,null,null,null,null,null,null,null,null,null,null,null,null,null,null,null,null,null,null,null,null,null,null,null,null,null,null,null,null,null,null,null,null,null,null,null,null,null,null,null,null,null,null,null,null,null,null,null,null,null,null,null,null,null,null,null,null,null,null,"£",null,null,null,null,null,null,null,null,null,null,null,null,"£",null,null,null,null,null,null,null,null,null,null,null,null,"£",null,null,null,null,null,null,null,null,null,null,null,null,null,null,"Club",null,null,null,null,null,"Thin",null,null,null,null,null,null,"£",null,null,null,null,null,null,null,null,null,null,null,null,"£"]
["M5","Prénom :",null,null,null,null,null,null,null,null,null,null,null,null,null,null,null,null,null,null,null,null,null,null,null,null,null,null,null,null,null,null,null,null,null,null,null,null,null,null,null,null,null,null,null,null,null,null,null,null,null,null,null,null,null,null,null,null,null,null,null,null,null,null,null,null,null,null,null,null,null,null,null,null,null,null,null,null,null,null,null,null,null,null,null,null,null,null,null,null,null,null,null,null,null,null,null,null,null,null,null,null,null,null,null,"£",null,null,null,null,null,"£"]
[null,"Mail :",null,null,null,null,null,null,null,null,null,null,null,null,null,null,null,null,null,null,null,null,null,null,null,null,null,null,null,null,null,null,null,null,null,null,null,null,null,null,null,null,null,null,null,null,null,null,null,null,null,null,null,null,null,null,null,null,null,null,null,null,null,null,null,null,null,null,null,null,null,null,null,null,null,null,null,null,null,null,null,null,null,null,null,null,null,null,null,null,null,null,null,null,null,null,null,null,null,null,null,null,null,null,null,"25€ H.T",null,null,null,null,null,null,null,null,null,null,null,null,"40€ H.T\npour 2 ans",null,null,null,null,null,null,null,null,null,null,null,null,"à souscrire séparement"]
[null,"Numéro abonné si existant : "]
[null,"Adresse :"]
[]
[]
[null,null,null,null,"Nom  : ",null,null,null,null,null,null,null,null,null,null,null,null,null,null,null,null,null,null,null,null,null,null,null,null,null,null,null,null,null,null,null,null,null,null,null,null,null,null,null,null,null,null,null,null,null,null,null,null,null,null,null,null,null,null,null,null,null,null,null,"£",null,null,null,null,null,null,null,null,null,null,null,null,"£",null,null,null,null,null,null,null,null,null,null,null,null,"£",null,null,null,null,null,null,null,null,null,null,null,null,null,null,"Club",null,null,null,null,null,"Thin",null,null,null,null,null,null,"£",null,null,null,null,null,null,null,null,null,null,null,null,"£"]
["M6","Prénom :",null,null,null,null,null,null,null,null,null,null,null,null,null,null,null,null,null,null,null,null,null,null,null,null,null,null,null,null,null,null,null,null,null,null,null,null,null,null,null,null,null,null,null,null,null,null,null,null,null,null,null,null,null,null,null,null,null,null,null,null,null,null,null,null,null,null,null,null,null,null,null,null,null,null,null,null,null,null,null,null,null,null,null,null,null,null,null,null,null,null,null,null,null,null,null,null,null,null,null,null,null,null,null,"£",null,null,null,null,null,"£"]
[null,"Mail :",null,null,null,null,null,null,null,null,null,null,null,null,null,null,null,null,null,null,null,null,null,null,null,null,null,null,null,null,null,null,null,null,null,null,null,null,null,null,null,null,null,null,null,null,null,null,null,null,null,null,null,null,null,null,null,null,null,null,null,null,null,null,null,null,null,null,null,null,null,null,null,null,null,null,null,null,null,null,null,null,null,null,null,null,null,null,null,null,null,null,null,null,null,null,null,null,null,null,null,null,null,null,null,"25€ H.T",null,null,null,null,null,null,null,null,null,null,null,null,"40€ H.T\npour 2 ans",null,null,null,null,null,null,null,null,null,null,null,null,"à souscrire séparement"]
[null,"Numéro abonné si existant : "]
[null,"Adresse :"]
[]
[]
[]
["LIEN COMPTES / UTILISATEURS PRINCIPALES &/OU MANDATAIRES"]
["Comptes BNP Paribas France Métropole à inscrire au contrat & désignation des mandataires habilités à consulter et/ou effectuer des opérations sur ces comptes:"]
["Numéro de compte",null,null,null,null,null,null,null,null,null,null,null,null,null,null,null,null,null,null,null,null,null,null,null,null,null,null,null,null,null,null,null,null,null,null,null,null,null,null,"UP ou M1",null,null,null,null,"M2",null,null,null,null,"M3",null,null,null,null,"M4",null,null,null,null,"M5",null,null,null,null,"M6",null,null,null,null,null,null,null,"Numéro de compte",null,null,null,null,null,null,null,null,null,null,null,null,null,null,null,null,null,null,null,null,null,null,null,null,null,null,null,null,null,null,null,null,null,null,null,null,null,null,null,null,"M1",null,null,null,null,"M2",null,null,null,null,"M3",null,null,null,null,"M4",null,null,null,null,"M5",null,null,null,null,"M6"]
["0827 215792/42 (TC 101, 181, 900, 999)",null,null,null,null,null,null,null,null,null,null,null,null,null,null,null,null,null,null,null,null,null,null,null,null,null,null,null,null,null,null,null,null,null,null,null,null,null,null,"R",null,null,null,null,"£",null,null,null,null,"£",null,null,null,null,"£",null,null,null,null,"£",null,null,null,null,"£",null,null,null,null,null,null,null,{"$f":"IF([1]Données!$W156<>\"\",CONCATENATE([1]Données!$Q156,\" \",[1]Données!$W156,\" \",[1]Données!$AA156),\"\")","v":""},null,null,null,null,null,null,null,null,null,null,null,null,null,null,null,null,null,null,null,null,null,null,null,null,null,null,null,null,null,null,null,null,null,null,null,null,null,null,null,null,"£",null,null,null,null,"£",null,null,null,null,"£",null,null,null,null,"£",null,null,null,null,"£",null,null,null,null,"£"]
[{"$f":"IF([1]Données!$W153<>\"\",CONCATENATE([1]Données!$Q153,\" \",[1]Données!$W153,\" \",[1]Données!$AA153),\"\")","v":""},null,null,null,null,null,null,null,null,null,null,null,null,null,null,null,null,null,null,null,null,null,null,null,null,null,null,null,null,null,null,null,null,null,null,null,null,null,null,"£",null,null,null,null,"£",null,null,null,null,"£",null,null,null,null,"£",null,null,null,null,"£",null,null,null,null,"£",null,null,null,null,null,null,null,{"$f":"IF([1]Données!$W157<>\"\",CONCATENATE([1]Données!$Q157,\" \",[1]Données!$W157,\" \",[1]Données!$AA157),\"\")","v":""},null,null,null,null,null,null,null,null,null,null,null,null,null,null,null,null,null,null,null,null,null,null,null,null,null,null,null,null,null,null,null,null,null,null,null,null,null,null,null,null,"£",null,null,null,null,"£",null,null,null,null,"£",null,null,null,null,"£",null,null,null,null,"£",null,null,null,null,"£"]
[{"$f":"IF([1]Données!$W154<>\"\",CONCATENATE([1]Données!$Q154,\" \",[1]Données!$W154,\" \",[1]Données!$AA154),\"\")","v":""},null,null,null,null,null,null,null,null,null,null,null,null,null,null,null,null,null,null,null,null,null,null,null,null,null,null,null,null,null,null,null,null,null,null,null,null,null,null,"£",null,null,null,null,"£",null,null,null,null,"£",null,null,null,null,"£",null,null,null,null,"£",null,null,null,null,"£",null,null,null,null,null,null,null,{"$f":"IF([1]Données!$W158<>\"\",CONCATENATE([1]Données!$Q158,\" \",[1]Données!$W158,\" \",[1]Données!$AA158),\"\")","v":""},null,null,null,null,null,null,null,null,null,null,null,null,null,null,null,null,null,null,null,null,null,null,null,null,null,null,null,null,null,null,null,null,null,null,null,null,null,null,null,null,"£",null,null,null,null,"£",null,null,null,null,"£",null,null,null,null,"£",null,null,null,null,"£",null,null,null,null,"£"]
[{"$f":"IF([1]Données!$W155<>\"\",CONCATENATE([1]Données!$Q155,\" \",[1]Données!$W155,\" \",[1]Données!$AA155),\"\")","v":""},null,null,null,null,null,null,null,null,null,null,null,null,null,null,null,null,null,null,null,null,null,null,null,null,null,null,null,null,null,null,null,null,null,null,null,null,null,null,"£",null,null,null,null,"£",null,null,null,null,"£",null,null,null,null,"£",null,null,null,null,"£",null,null,null,null,"£",null,null,null,null,null,null,null,null,null,null,null,null,null,null,null,null,null,null,null,null,null,null,null,null,null,null,null,null,null,null,null,null,null,null,null,null,null,null,null,null,null,null,null,null,null,null,null,null,"£",null,null,null,null,"£",null,null,null,null,"£",null,null,null,null,"£",null,null,null,null,"£",null,null,null,null,"£"]
[null,null,null,null,null,null,null,null,null,null,null,null,null,null,null,null,null,null,null,null,null,null,null,null,null,null,null,null,null,null,null,null,null,null,null,null,null,null,null,"£",null,null,null,null,"£",null,null,null,null,"£",null,null,null,null,"£",null,null,null,null,"£",null,null,null,null,"£",null,null,null,null,null,null,null,null,null,null,null,null,null,null,null,null,null,null,null,null,null,null,null,null,null,null,null,null,null,null,null,null,null,null,null,null,null,null,null,null,null,null,null,null,null,null,null,null,"£",null,null,null,null,"£",null,null,null,null,"£",null,null,null,null,"£",null,null,null,null,"£",null,null,null,null,"£"]
[]
["£","Ajouter des Comptes"]
[]
["Numéro de compte",null,null,null,null,null,null,null,null,null,null,null,null,null,null,null,null,null,null,null,null,null,null,null,null,null,null,null,null,null,null,null,null,null,null,null,null,null,null,"M1",null,null,null,null,"M2",null,null,null,null,"M3",null,null,null,null,"M4",null,null,null,null,"M5",null,null,null,null,"M6",null,null,null,null,null,null,null,"Numéro de compte",null,null,null,null,null,null,null,null,null,null,null,null,null,null,null,null,null,null,null,null,null,null,null,null,null,null,null,null,null,null,null,null,null,null,null,null,null,null,null,null,"M1",null,null,null,null,"M2",null,null,null,null,"M3",null,null,null,null,"M4",null,null,null,null,"M5",null,null,null,null,"M6"]
[null,null,null,null,null,null,null,null,null,null,null,null,null,null,null,null,null,null,null,null,null,null,null,null,null,null,null,null,null,null,null,null,null,null,null,null,null,null,null,"£",null,null,null,null,"£",null,null,null,null,"£",null,null,null,null,"£",null,null,null,null,"£",null,null,null,null,"£",null,null,null,null,null,null,null,null,null,null,null,null,null,null,null,null,null,null,null,null,null,null,null,null,null,null,null,null,null,null,null,null,null,null,null,null,null,null,null,null,null,null,null,null,null,null,null,null,"£",null,null,null,null,"£",null,null,null,null,"£",null,null,null,null,"£",null,null,null,null,"£",null,null,null,null,"£"]
[null,null,null,null,null,null,null,null,null,null,null,null,null,null,null,null,null,null,null,null,null,null,null,null,null,null,null,null,null,null,null,null,null,null,null,null,null,null,null,"£",null,null,null,null,"£",null,null,null,null,"£",null,null,null,null,"£",null,null,null,null,"£",null,null,null,null,"£",null,null,null,null,null,null,null,null,null,null,null,null,null,null,null,null,null,null,null,null,null,null,null,null,null,null,null,null,null,null,null,null,null,null,null,null,null,null,null,null,null,null,null,null,null,null,null,null,"£",null,null,null,null,"£",null,null,null,null,"£",null,null,null,null,"£",null,null,null,null,"£",null,null,null,null,"£"]
[null,null,null,null,null,null,null,null,null,null,null,null,null,null,null,null,null,null,null,null,null,null,null,null,null,null,null,null,null,null,null,null,null,null,null,null,null,null,null,"£",null,null,null,null,"£",null,null,null,null,"£",null,null,null,null,"£",null,null,null,null,"£",null,null,null,null,"£",null,null,null,null,null,null,null,null,null,null,null,null,null,null,null,null,null,null,null,null,null,null,null,null,null,null,null,null,null,null,null,null,null,null,null,null,null,null,null,null,null,null,null,null,null,null,null,null,"£",null,null,null,null,"£",null,null,null,null,"£",null,null,null,null,"£",null,null,null,null,"£",null,null,null,null,"£"]
[null,null,null,null,null,null,null,null,null,null,null,null,null,null,null,null,null,null,null,null,null,null,null,null,null,null,null,null,null,null,null,null,null,null,null,null,null,null,null,"£",null,null,null,null,"£",null,null,null,null,"£",null,null,null,null,"£",null,null,null,null,"£",null,null,null,null,"£",null,null,null,null,null,null,null,null,null,null,null,null,null,null,null,null,null,null,null,null,null,null,null,null,null,null,null,null,null,null,null,null,null,null,null,null,null,null,null,null,null,null,null,null,null,null,null,null,"£",null,null,null,null,"£",null,null,null,null,"£",null,null,null,null,"£",null,null,null,null,"£",null,null,null,null,"£"]
[null,null,null,null,null,null,null,null,null,null,null,null,null,null,null,null,null,null,null,null,null,null,null,null,null,null,null,null,null,null,null,null,null,null,null,null,null,null,null,"£",null,null,null,null,"£",null,null,null,null,"£",null,null,null,null,"£",null,null,null,null,"£",null,null,null,null,"£",null,null,null,null,null,null,null,null,null,null,null,null,null,null,null,null,null,null,null,null,null,null,null,null,null,null,null,null,null,null,null,null,null,null,null,null,null,null,null,null,null,null,null,null,null,null,null,null,"£",null,null,null,null,"£",null,null,null,null,"£",null,null,null,null,"£",null,null,null,null,"£",null,null,null,null,"£"]
[]
["Numéro de compte",null,null,null,null,null,null,null,null,null,null,null,null,null,null,null,null,null,null,null,null,null,null,null,null,null,null,null,null,null,null,null,null,null,null,null,null,null,null,"M1",null,null,null,null,"M2",null,null,null,null,"M3",null,null,null,null,"M4",null,null,null,null,"M5",null,null,null,null,"M6",null,null,null,null,null,null,null,"Numéro de compte",null,null,null,null,null,null,null,null,null,null,null,null,null,null,null,null,null,null,null,null,null,null,null,null,null,null,null,null,null,null,null,null,null,null,null,null,null,null,null,null,"M1",null,null,null,null,"M2",null,null,null,null,"M3",null,null,null,null,"M4",null,null,null,null,"M5",null,null,null,null,"M6"]
[null,null,null,null,null,null,null,null,null,null,null,null,null,null,null,null,null,null,null,null,null,null,null,null,null,null,null,null,null,null,null,null,null,null,null,null,null,null,null,"£",null,null,null,null,"£",null,null,null,null,"£",null,null,null,null,"£",null,null,null,null,"£",null,null,null,null,"£",null,null,null,null,null,null,null,null,null,null,null,null,null,null,null,null,null,null,null,null,null,null,null,null,null,null,null,null,null,null,null,null,null,null,null,null,null,null,null,null,null,null,null,null,null,null,null,null,"£",null,null,null,null,"£",null,null,null,null,"£",null,null,null,null,"£",null,null,null,null,"£",null,null,null,null,"£"]
[null,null,null,null,null,null,null,null,null,null,null,null,null,null,null,null,null,null,null,null,null,null,null,null,null,null,null,null,null,null,null,null,null,null,null,null,null,null,null,"£",null,null,null,null,"£",null,null,null,null,"£",null,null,null,null,"£",null,null,null,null,"£",null,null,null,null,"£",null,null,null,null,null,null,null,null,null,null,null,null,null,null,null,null,null,null,null,null,null,null,null,null,null,null,null,null,null,null,null,null,null,null,null,null,null,null,null,null,null,null,null,null,null,null,null,null,"£",null,null,null,null,"£",null,null,null,null,"£",null,null,null,null,"£",null,null,null,null,"£",null,null,null,null,"£"]
[null,null,null,null,null,null,null,null,null,null,null,null,null,null,null,null,null,null,null,null,null,null,null,null,null,null,null,null,null,null,null,null,null,null,null,null,null,null,null,"£",null,null,null,null,"£",null,null,null,null,"£",null,null,null,null,"£",null,null,null,null,"£",null,null,null,null,"£",null,null,null,null,null,null,null,null,null,null,null,null,null,null,null,null,null,null,null,null,null,null,null,null,null,null,null,null,null,null,null,null,null,null,null,null,null,null,null,null,null,null,null,null,null,null,null,null,"£",null,null,null,null,"£",null,null,null,null,"£",null,null,null,null,"£",null,null,null,null,"£",null,null,null,null,"£"]
[null,null,null,null,null,null,null,null,null,null,null,null,null,null,null,null,null,null,null,null,null,null,null,null,null,null,null,null,null,null,null,null,null,null,null,null,null,null,null,"£",null,null,null,null,"£",null,null,null,null,"£",null,null,null,null,"£",null,null,null,null,"£",null,null,null,null,"£",null,null,null,null,null,null,null,null,null,null,null,null,null,null,null,null,null,null,null,null,null,null,null,null,null,null,null,null,null,null,null,null,null,null,null,null,null,null,null,null,null,null,null,null,null,null,null,null,"£",null,null,null,null,"£",null,null,null,null,"£",null,null,null,null,"£",null,null,null,null,"£",null,null,null,null,"£"]
[null,null,null,null,null,null,null,null,null,null,null,null,null,null,null,null,null,null,null,null,null,null,null,null,null,null,null,null,null,null,null,null,null,null,null,null,null,null,null,"£",null,null,null,null,"£",null,null,null,null,"£",null,null,null,null,"£",null,null,null,null,"£",null,null,null,null,"£",null,null,null,null,null,null,null,null,null,null,null,null,null,null,null,null,null,null,null,null,null,null,null,null,null,null,null,null,null,null,null,null,null,null,null,null,null,null,null,null,null,null,null,null,null,null,null,null,"£",null,null,null,null,"£",null,null,null,null,"£",null,null,null,null,"£",null,null,null,null,"£",null,null,null,null,"£"]
[]
[]
["CHOIX DES SERVICES ET HABILITATION DES MANDATAIRES"]
[]
[null,null,null,null,null,null,null,null,null,null,null,null,null,null,null,null,null,null,null,null,null,null,null,null,null,null,null,null,null,null,null,null,null,null,null,null,null,null,null,null,null,null,null,null,null,null,null,null,null,null,null,null,null,null,null,null,null,null,null,null,null,null,null,null,null,null,null,"UP ou M1",null,null,null,null,"M2",null,null,null,null,"M3",null,null,null,null,"M4",null,null,null,null,"M5",null,null,null,null,"M6",null,null,null,null,"Tarif mensuel 2014 HT",null,null,null,null,null,null,null,null,null,"TOTAL \nmensuel H.T",null,null,null,null,null,null,null,null,null,null,null,null,null,null,"Codes services reservés \nBNP Paribas"]
[null,null,null,null,null,null,null,null,null,null,null,null,null,null,null,null,null,null,null,null,null,null,null,null,null,null,null,null,null,null,null,null,null,null,null,null,null,null,null,null,null,null,null,null,null,null,null,null,null,null,null,null,null,null,null,null,null,null,null,null,null,null,null,null,null,null,null,null,null,null,null,null,null,null,null,null,null,null,null,null,null,null,null,null,null,null,null,null,null,null,null,null,null,null,null,null,null,{"$f":"IF(EG114<0,\" Tarification préférentielle après remise de :  \",\"\")","v":""}]
["MODULE STANDARD"]
["Tous les services de base",null,null,null,null,null,null,null,null,null,null,null,null,null,null,null,null,null,null,null,null,null,null,null,null,null,null,null,null,null,null,null,null,null,null,null,null,null,null,null,null,null,null,null,null,null,null,null,null,null,null,null,null,null,null,null,null,null,null,null,null,null,null,null,null,null,null,"R",null,null,null,null,"£",null,null,null,null,"£",null,null,null,null,"£",null,null,null,null,"£",null,null,null,null,"£"]
[null,null,null,null,null,null,null,null,null,null,null,null,null,null,null,null,null,null,null,null,null,null,null,null,null,null,null,null,null,null,null,null,null,null,null,null,null,null,null,null,null,null,null,null,null,null,null,null,null,null,null,null,null,null,null,null,null,null,null,null,null,null,null,null,null,null,null,null,null,null,null,null,null,null,null,null,null,null,null,null,null,null,null,null,null,null,null,null,null,null,null,null,null,null,null,null,null,23.6]
[null,"CONSULTATION DES COMPTES"]
[null," - Comptes, épargnes, DAT",null,null,null,null,null,null,null,null,null,null,null,null,null,null,null,null,null,null,null,null,null,null,null,null,null,null,null,null,null,null,null,null,null,null,null,null,null,null,null,null,null,null,null,null,null,null,null,null,null,null,null,null,null,null,null,null,null,null,null,null,null,null,null,null,null,{"$f":"BP116","v":"R"},null,null,null,null,{"$f":"BU116","v":"£"},null,null,null,null,{"$f":"BZ116","v":"£"},null,null,null,null,{"$f":"CE116","v":"£"},null,null,null,null,{"$f":"CJ116","v":"£"},null,null,null,null,{"$f":"CO116","v":"£"},null,null,null,null,null,null,null,null,null,null,null,null,null,null,null,null,null,null,null,null,null,null,null,null,null,null,null,null,null,"IA020"]
[null," - Titres",null,null,null,null,null,null,null,null,null,null,null,null,null,null,null,null,null,null,null,null,null,null,null,null,null,null,null,null,null,null,null,null,null,null,null,null,null,null,null,null,null,null,null,null,null,null,null,null,null,null,null,null,null,null,null,null,null,null,null,null,null,null,null,null,null,{"$f":"BP116","v":"R"},null,null,null,null,{"$f":"BU116","v":"£"},null,null,null,null,{"$f":"BZ116","v":"£"},null,null,null,null,{"$f":"CE116","v":"£"},null,null,null,null,{"$f":"CJ116","v":"£"},null,null,null,null,{"$f":"CO116","v":"£"},null,null,null,null,null,null,null,null,null,null,null,null,null,null,{"$f":"IF(COUNTIF(BP117:CS137,\"R\")>0,CT117-(CT117/100*DD117),\"\")","v":23.6},null,null,null,null,null,null,null,null,null,null,null,null,null,null,"IA004"]
[null," - Encours LCR/BOR",null,null,null,null,null,null,null,null,null,null,null,null,null,null,null,null,null,null,null,null,null,null,null,null,null,null,null,null,null,null,null,null,null,null,null,null,null,null,null,null,null,null,null,null,null,null,null,null,null,null,null,null,null,null,null,null,null,null,null,null,null,null,null,null,null,{"$f":"BP116","v":"R"},null,null,null,null,{"$f":"BU116","v":"£"},null,null,null,null,{"$f":"BZ116","v":"£"},null,null,null,null,{"$f":"CE116","v":"£"},null,null,null,null,{"$f":"CJ116","v":"£"},null,null,null,null,{"$f":"CO116","v":"£"},null,null,null,null,null,null,null,null,null,null,null,null,null,null,null,null,null,null,null,null,null,null,null,null,null,null,null,null,null,"IA016"]
[]
[null,"SERVICES"]
[null,"(opposition chèques, opposition cartes, commande de chéquiers)",null,null,null,null,null,null,null,null,null,null,null,null,null,null,null,null,null,null,null,null,null,null,null,null,null,null,null,null,null,null,null,null,null,null,null,null,null,null,null,null,null,null,null,null,null,null,null,null,null,null,null,null,null,null,null,null,null,null,null,null,null,null,null,null,null,{"$f":"BP116","v":"R"},null,null,null,null,{"$f":"BU116","v":"£"},null,null,null,null,{"$f":"BZ116","v":"£"},null,null,null,null,{"$f":"CE116","v":"£"},null,null,null,null,{"$f":"CJ116","v":"£"},null,null,null,null,{"$f":"CO116","v":"£"},null,null,null,null,null,null,null,null,null,null,null,null,null,null,null,null,null,null,null,null,null,null,null,null,null,null,null,null,null,"IA023, IA025, IA005"]
[]
[null,"TIERS"]
[null,null,null,null,null,null,null,null,null,null,null,null,null,null,null,null,null,null,null,null,null,null,null,null,null,null,null,null,null,null,null,null,null,null,null,null,null,null,null,null,null,null,null,null,null,null,null,null,null,null,null,null,null,null,null,null,null,null,null,null,null,null,null,null,null,null,null,{"$f":"BP116","v":"R"},null,null,null,null,{"$f":"BU116","v":"£"},null,null,null,null,{"$f":"BZ116","v":"£"},null,null,null,null,{"$f":"CE116","v":"£"},null,null,null,null,{"$f":"CJ116","v":"£"},null,null,null,null,{"$f":"CO116","v":"£"},null,null,null,null,null,null,null,null,null,null,null,null,null,null,null,null,null,null,null,null,null,null,null,null,null,null,null,null,null,"IA145"]
[]
[null,"VIREMENTS COMPTE A COMPTE"]
[null,"(Création et validation)",null,null,null,null,null,null,null,null,null,null,null,null,null,null,null,null,null,null,null,null,null,null,null,null,null,null,null,null,null,null,null,null,null,null,null,null,null,null,null,null,null,null,null,null,null,null,null,null,null,null,null,null,null,null,null,null,null,null,null,null,null,null,null,null,null,{"$f":"BP116","v":"R"},null,null,null,null,{"$f":"BU116","v":"£"},null,null,null,null,{"$f":"BZ116","v":"£"},null,null,null,null,{"$f":"CE116","v":"£"},null,null,null,null,{"$f":"CJ116","v":"£"},null,null,null,null,{"$f":"CO116","v":"£"},null,null,null,null,null,null,null,null,null,null,null,null,null,null,null,null,null,null,null,null,null,null,null,null,null,null,null,null,null,"IA006, IA140"]
[]
[null,"VIREMENTS UNITAIRES VERS COMPTES DE TIERS      "]
[null,"CREATION (tous types)",null,null,null,null,null,null,null,null,null,null,null,null,null,null,null,null,null,null,null,null,null,null,null,null,null,null,null,null,null,null,null,null,null,null,null,null,null,null,null,null,null,null,null,null,null,null,null,null,null,null,null,null,null,null,null,null,null,null,null,null,null,null,null,null,null,{"$f":"BP116","v":"R"},null,null,null,null,{"$f":"BU116","v":"£"},null,null,null,null,{"$f":"BZ116","v":"£"},null,null,null,null,{"$f":"CE116","v":"£"},null,null,null,null,{"$f":"CJ116","v":"£"},null,null,null,null,{"$f":"CO116","v":"£"},null,null,null,null,null,null,null,null,null,null,null,null,null,null,null,null,null,null,null,null,null,null,null,null,null,null,null,null,null,"IA007"]
[null,"VALIDATION :"]
[null," - SEPA",null,null,null,null,null,null,null,null,null,null,null,null,null,null,null,null,null,null,null,null,null,null,null,null,null,null,null,null,null,null,null,null,null,null,null,null,null,null,null,null,null,null,null,null,null,null,null,null,null,null,null,null,null,null,null,null,null,null,null,null,null,null,null,null,null,{"$f":"BP116","v":"R"},null,null,null,null,{"$f":"BU116","v":"£"},null,null,null,null,{"$f":"BZ116","v":"£"},null,null,null,null,{"$f":"CE116","v":"£"},null,null,null,null,{"$f":"CJ116","v":"£"},null,null,null,null,{"$f":"CO116","v":"£"},null,null,null,null,null,null,null,null,null,null,null,null,null,null,null,null,null,null,null,null,null,null,null,null,null,null,null,null,null,"IA049"]
[null," - Trésorerie",null,null,null,null,null,null,null,null,null,null,null,null,null,null,null,null,null,null,null,null,null,null,null,null,null,null,null,null,null,null,null,null,null,null,null,null,null,null,null,null,null,null,null,null,null,null,null,null,null,null,null,null,null,null,null,null,null,null,null,null,null,null,null,null,null,{"$f":"BP116","v":"R"},null,null,null,null,{"$f":"BU116","v":"£"},null,null,null,null,{"$f":"BZ116","v":"£"},null,null,null,null,{"$f":"CE116","v":"£"},null,null,null,null,{"$f":"CJ116","v":"£"},null,null,null,null,{"$f":"CO116","v":"£"},null,null,null,null,null,null,null,null,null,null,null,null,null,null,null,null,null,null,null,null,null,null,null,null,null,null,null,null,null,"IA051"]
[null," - Internationaux",null,null,null,null,null,null,null,null,null,null,null,null,null,null,null,null,null,null,null,null,null,null,null,null,null,null,null,null,null,null,null,null,null,null,null,null,null,null,null,null,null,null,null,null,null,null,null,null,null,null,null,null,null,null,null,null,null,null,null,null,null,null,null,null,null,{"$f":"BP116","v":"R"},null,null,null,null,{"$f":"BU116","v":"£"},null,null,null,null,{"$f":"BZ116","v":"£"},null,null,null,null,{"$f":"CE116","v":"£"},null,null,null,null,{"$f":"CJ116","v":"£"},null,null,null,null,{"$f":"CO116","v":"£"},null,null,null,null,null,null,null,null,null,null,null,null,null,null,null,null,null,null,null,null,null,null,null,null,null,null,null,null,null,"IA050"]
[]
[null,"REMISES SUR LISTE"]
[null,"CREATION (tous types)",null,null,null,null,null,null,null,null,null,null,null,null,null,null,null,null,null,null,null,null,null,null,null,null,null,null,null,null,null,null,null,null,null,null,null,null,null,null,null,null,null,null,null,null,null,null,null,null,null,null,null,null,null,null,null,null,null,null,null,null,null,null,null,null,null,{"$f":"BP116","v":"R"},null,null,null,null,"£",null,null,null,null,"£",null,null,null,null,"£",null,null,null,null,"£",null,null,null,null,"£",null,null,null,null,null,null,null,null,null,null,null,null,null,null,null,null,null,null,null,null,null,null,null,null,null,null,null,null,null,"IA146"]
[null,"VALIDATION :"]
[null," - Virement SEPA",null,null,null,null,null,null,null,null,null,null,null,null,null,null,null,null,null,null,null,null,null,null,null,null,null,null,null,null,null,null,null,null,null,null,null,null,null,null,null,null,null,null,null,null,null,null,null,null,null,null,null,null,null,null,null,null,null,null,null,null,null,null,null,null,null,{"$f":"BP116","v":"R"},null,null,null,null,{"$f":"BU116","v":"£"},null,null,null,null,{"$f":"BZ116","v":"£"},null,null,null,null,{"$f":"CE116","v":"£"},null,null,null,null,{"$f":"CJ116","v":"£"},null,null,null,null,{"$f":"CO116","v":"£"},null,null,null,null,null,null,null,null,null,null,null,null,null,null,null,null,null,null,null,null,null,null,null,null,null,null,null,null,null,"IA147"]
[null," - Virement Trésorerie",null,null,null,null,null,null,null,null,null,null,null,null,null,null,null,null,null,null,null,null,null,null,null,null,null,null,null,null,null,null,null,null,null,null,null,null,null,null,null,null,null,null,null,null,null,null,null,null,null,null,null,null,null,null,null,null,null,null,null,null,null,null,null,null,null,{"$f":"BP116","v":"R"},null,null,null,null,{"$f":"BU116","v":"£"},null,null,null,null,{"$f":"BZ116","v":"£"},null,null,null,null,{"$f":"CE116","v":"£"},null,null,null,null,{"$f":"CJ116","v":"£"},null,null,null,null,{"$f":"CO116","v":"£"},null,null,null,null,null,null,null,null,null,null,null,null,null,null,null,null,null,null,null,null,null,null,null,null,null,null,null,null,null,"IA052"]
[null," - Virement Internationaux",null,null,null,null,null,null,null,null,null,null,null,null,null,null,null,null,null,null,null,null,null,null,null,null,null,null,null,null,null,null,null,null,null,null,null,null,null,null,null,null,null,null,null,null,null,null,null,null,null,null,null,null,null,null,null,null,null,null,null,null,null,null,null,null,null,{"$f":"BP116","v":"R"},null,null,null,null,{"$f":"BU116","v":"£"},null,null,null,null,{"$f":"BZ116","v":"£"},null,null,null,null,{"$f":"CE116","v":"£"},null,null,null,null,{"$f":"CJ116","v":"£"},null,null,null,null,{"$f":"CO116","v":"£"},null,null,null,null,null,null,null,null,null,null,null,null,null,null,null,null,null,null,null,null,null,null,null,null,null,null,null,null,null,"IA053"]
[null," - Prélèvement",null,null,null,null,null,null,null,null,null,null,null,null,null,null,null,null,null,null,null,null,null,null,null,null,null,null,null,null,null,null,null,null,null,null,null,null,null,null,null,null,null,null,null,null,null,null,null,null,null,null,null,null,null,null,null,null,null,null,null,null,null,null,null,null,null,{"$f":"BP116","v":"R"},null,null,null,null,{"$f":"BU116","v":"£"},null,null,null,null,{"$f":"BZ116","v":"£"},null,null,null,null,{"$f":"CE116","v":"£"},null,null,null,null,{"$f":"CJ116","v":"£"},null,null,null,null,{"$f":"CO116","v":"£"},null,null,null,null,null,null,null,null,null,null,null,null,null,null,null,null,null,null,null,null,null,null,null,null,null,null,null,null,null,"IA148"]
[null," - LCR / BOR",null,null,null,null,null,null,null,null,null,null,null,null,null,null,null,null,null,null,null,null,null,null,null,null,null,null,null,null,null,null,null,null,null,null,null,null,null,null,null,null,null,null,null,null,null,null,null,null,null,null,null,null,null,null,null,null,null,null,null,null,null,null,null,null,null,{"$f":"BP116","v":"R"},null,null,null,null,{"$f":"BU116","v":"£"},null,null,null,null,{"$f":"BZ116","v":"£"},null,null,null,null,{"$f":"CE116","v":"£"},null,null,null,null,{"$f":"CJ116","v":"£"},null,null,null,null,{"$f":"CO116","v":"£"},null,null,null,null,null,null,null,null,null,null,null,null,null,null,null,null,null,null,null,null,null,null,null,null,null,null,null,null,null,"IA149, IA150"]
["MODULES SUPPLEMENTAIRES"]
["Visualisation virements confidentiels",null,null,null,null,null,null,null,null,null,null,null,null,null,null,null,null,null,null,null,null,null,null,null,null,null,null,null,null,null,null,null,null,null,null,null,null,null,null,null,null,null,null,null,null,null,null,null,null,null,null,null,null,null,null,null,null,null,null,null,null,null,null,null,null,null,null,"£",null,null,null,null,"£",null,null,null,null,"£",null,null,null,null,"£",null,null,null,null,"£",null,null,null,null,"£",null,null,null,null,8,null,null,null,null,null,null,null,null,null,null,null,null,null,null,null,null,{"$f":" IF(COUNTIF(BP148:CS148,\"R\")>0,CT148-(CT148/100*DD148),\"\")","v":""},null,null,null,null,null,null,null,"IA054"]
["Bons à payer (consultation et réponse aux relevés LCR)",null,null,null,null,null,null,null,null,null,null,null,null,null,null,null,null,null,null,null,null,null,null,null,null,null,null,null,null,null,null,null,null,null,null,null,null,null,null,null,null,null,null,null,null,null,null,null,null,null,null,null,null,null,null,null,null,null,null,null,null,null,null,null,null,null,null,"£",null,null,null,null,"£",null,null,null,null,"£",null,null,null,null,"£",null,null,null,null,"£",null,null,null,null,"£",null,null,null,null,4,null,null,null,null,null,null,null,null,null,null,null,null,null,null,null,null,{"$f":" IF(COUNTIF(BP149:CS149,\"R\")>0,CT149-(CT149/100*DD149),\"\")","v":""},null,null,null,null,null,null,null,"IA153",null,null,null,null,null,null,null,null,null,null,"IA154"]
["Consultation encours de crédit, avance sur factures, financements",null,null,null,null,null,null,null,null,null,null,null,null,null,null,null,null,null,null,null,null,null,null,null,null,null,null,null,null,null,null,null,null,null,null,null,null,null,null,null,null,null,null,null,null,null,null,null,null,null,null,null,null,null,null,null,null,null,null,null,null,null,null,null,null,null,null,"£",null,null,null,null,"£",null,null,null,null,"£",null,null,null,null,"£",null,null,null,null,"£",null,null,null,null,"£",null,null,null,null,4,null,null,null,null,null,null,null,null,null,null,null,null,null,null,null,null,"",null,null,null,null,null,null,null,"IA036",null,null,null,null,null,null,"IA055",null,null,null,null,null,null,"IA076"]
["Souscription/Rachat OPCVM BNP Paribas",null,null,null,null,null,null,null,null,null,null,null,null,null,null,null,null,null,null,null,null,null,null,null,null,null,null,null,null,null,null,null,null,null,null,null,null,null,null,null,null,null,null,null,null,null,null,null,null,null,null,null,null,null,null,null,null,null,null,null,null,null,null,null,null,null,null,"R",null,null,null,null,"£",null,null,null,null,"£",null,null,null,null,"£",null,null,null,null,"£",null,null,null,null,"£",null,null,null,null,5,null,null,null,null,null,null,null,null,null,null,null,null,null,null,null,null,5,null,null,null,null,null,null,null,"IA033"]
["Consultation compte(s) Banques tierces       \nNuméro du/des compte(s) à inscrire:",null,null,null,null,null,null,null,null,null,null,null,null,null,null,null,null,null,null,null,null,null,null,null,null,null,null,null,null,null,null,null,null,null,null,null,null,null,null,null,null,null,null,null,null,null,null,null,null,null,null,null,null,null,null,null,null,null,null,null,null,null,null,null,null,null,null,"£",null,null,null,null,"£",null,null,null,null,"£",null,null,null,null,"£",null,null,null,null,"£",null,null,null,null,"£",null,null,null,null,20,null,null,null,null,null,null,null,null,null,null,null,null,null,null,null,null,{"$f":" IF(COUNTIF(BP152:CS152,\"R\")>0,CT152-(CT152/100*DD152),\"\")","v":""},null,null,null,null,null,null,null,"IA077"]
[null,"Comptes à inscrire :"]
[null,"Code BIC",null,null,null,null,null,null,null,null,null,null,null,null,null,null,null,null,null,null,null,null,null,null,null,null,null,null,null,null,null,null,null,null,"Numéro de compte (TAG 25)"]
[]
[]
[]
[]
[]
[null,null,null,null,null,null,null,null,null,null,null,null,null,null,null,null,null,null,null,null,null,null,null,null,null,null,null,null,null,null,null,null,null,null,null,null,null,null,null,null,null,null,null,null,null,null,null,null,null,null,null,null,null,null,null,null,null,null,null,null,null,null,null,null,null,null,null,null,null,null,"Total de l'abonnement mensuel HT",null,null,null,null,null,null,null,null,null,null,null,null,null,null,null,null,null,null,null,null,null,null,null,null,null,null,null,null,null,null,null,null,null,null,null,null,{"$f":"SUM(DD120:DR146,DK148,DK149,DK150,DK151,DK152)","v":28.6},null,null,null,null,null,null,null,null,null,null,null,null,null,null," avec réduction de 50 %, soit 14,30 €"]
[]
["PLAFONDS DE SIGNATURE"]
["L'utilisation d'une carte TS ou d'un certificat électronique pour l'authentification permet de bénéficier de plafonds de validation personnalisés.\nIndiquez ci-dessous le montant de plafond personnalisé pour chacun des mandataires désignés. Ce plafond correspond au montant maximal des opérations que le mandataire est autorisé à valider, par compte, en cumul par jour et par type d'ordre. \nPar défaut, ce montant est fixé à 150.000 € / compte / jour pour chaque type de virement unitaire, et à 750.000 € / compte / jour pour chaque type de remise de virements. Ces plafonds peuvent être personnalisés dans la partie \"Personnalisation des plafonds de signature \" ci-dessous.\nLes virements compte à compte, les remises de LCR et de prélèvements ne sont pas soumis à plafond."]
[]
["£","PERSONNALISATION DES PLAFONDS DE SIGNATURE "]
[]
["La signature est dite double lorsque les porteurs sont autorisés à signer les ordres d’exécution deux à deux.\nDéfinissez ci-dessous les couples ou collèges de signataires à créer, ainsi que les plafonds de validation en signature double."]
[]
["Libellé couple/collège*",null,null,null,null,null,null,null,null,null,null,null,null,null,null,null,null,null,null,null,null,null,null,null,null,null,null,null,null,null,null,null,null,null,null,null,null,null,null,null,null,null,null,null,null,null,null,null,null,null,null,null,null,null,null,null,null,null,null,null,null,null,null,null,null,null,null,null,null,null,null,null,null,null,null,"Liste des signataires**"]
["1. libellé:"]
[]
[]
[]
["2. libellé:"]
[]
[]
[]
["* Renseigner le libellé que vous souhaitez appliquer au couple de signataires.\n** Indiquer les civilité, nom et prénom de chacun des signataires."]
[]
[]
[]
[]
["Mandataires\nou Collèges\n",null,null,null,null,null,null,null,null,null,null,null,null,null,null,null,null,null,null,null,null,null,null,null,null,null,null,null,null,null,"Numéro de compte",null,null,null,null,null,null,null,null,null,null,null,null,null,null,null,null,null,null,null,null,null,null,null,null,null,null,null,null,"Services de validation (1)",null,null,null,null,null,null,null,null,null,null,null,null,null,null,null,null,null,null,null,null,null,null,null,null,null,null,null,null,null,null,null,null,null,null,null,"Plafonds par ordre (2)\n(pour chaque service de validation coché)"]
[null,null,null,null,null,null,null,null,null,null,null,null,null,null,null,null,null,null,null,null,null,null,null,null,null,null,null,null,null,null,"Code Agence",null,null,null,null,null,null,null,null,"Numéro de compte",null,null,null,null,null,null,null,null,null,null,null,null,null,null,null,"RIB",null,null,null,null,null,null,null,"OU",null,null,null,null,null,null,null," - IA050 -\nVir Internationaux vers Tiers",null,null,null,null,null,null,null,null,"OU",null,null,null,null,null,null,null,null,null,null,null,null,null,null,"Signature Simple",null,null,null,null,null,null,null,null,null,null,null,null,null,null,null,null,null,null,null,null,null,null,null,"Signature Double"]
[null,null,null,null,null,null,null,null,null,null,null,null,null,null,null,null,null,null,null,null,null,null,null,null,null,null,null,null,null,null,null,null,null,null,null,null,null,null,null,null,null,null,null,null,null,null,null,null,null,null,null,null,null,null,null,null,null,null,null," - IA049 - \nVir Domestique et SEPA vers Tiers",null,null,null,null,null," - IA051 - \nVir unitairede Dom/SEPA et Trésorerie",null,null,null,null,null,null,null,null,null,null,null," - IA147 - \nRemise Vir Domestique et SEPA",null,null,null,null,null," - IA52-\nRemise Vir Dom/SEPA et Trésorerie",null,null,null,null,null," - IA053- \nRemise Vir Internationaux"]
[null,null,null,null,null,null,null,null,null,null,null,null,null,null,null,null,null,null,null,null,null,null,null,null,null,null,null,null,null,null,null,null,null,null,null,null,null,null,null,null,null,null,null,null,null,null,null,null,null,null,null,null,null,null,null,null,null,null,null,null,null,null,null,null,null,null,null,null,null,null,null,null,null,null,null,null,null,null,null,null,null,null,null,null,null,null,null,null,null,null,null,null,null,null,null,null,null,null,null,null,null,null,null,null,null,null,null,null,null,null,null,null,null,null,null,null,null,null,null,null,null,null,null,null,null,null,null,null,null,"£"]
["Définir collèges :",null,null,null,null,null,null,null,null,null,null,null,null,null,null,null,null,null,null,null,null,null,null,null,"£",null,null,null,null,null,null,null,null,null,null,null,null,null,null,null,null,null,null,null,null,null,null,null,null,null,null,null,null,null,null,null,null,null,null,null,null,null,null,null,null,null,null,null,null,null,null,null,null,null,null,null,null,null,null,null,null,null,null,null,null,null,null,null,null,null,null,null,null,null,null,"par ordre",null,null,null,null,null,null,null,null,null,null,null,"cumul jour",null,null,null,null,null,"15j glissant",null,null,null,null,null,"par ordre",null,null,null,null,null,null,null,null,null,null,null,"cumul jour",null,null,null,null,null,"15j glissant"]
[null,null,null,null,null,null,null,null,null,null,null,null,null,null,null,null,null,null,null,null,null,null,null,null,null,null,null,null,null,null,null,null,null,null,null,null,null,null,null,null,null,null,null,null,null,null,null,null,null,null,null,null,null,null,null,null,null,null,null,null,null,null,null,null,null,null,null,null,null,null,null,null,null,null,null,null,null,null,null,null,null,null,null,null,null,null,null,null,null,null,null,null,null,null,null,null,null,null,null,null,null,null,null,null,null,null,null,"£",null,null,null,null,null,"£",null,null,null,null,null,null,null,null,null,null,null,null,null,null,null,null,null,"£",null,null,null,null,null,"£"]
[null,null,null,null,null,null,null,null,null,null,null,null,null,null,null,null,null,null,null,null,null,null,null,null,null,null,null,null,null,null,null,null,null,null,null,null,null,null,null,null,null,null,null,null,null,null,null,null,null,null,null,null,null,null,null,null,null,null,null,"£",null,null,null,null,null,"£",null,null,null,null,null,"£",null,null,null,null,null,"£",null,null,null,null,null,"£",null,null,null,null,null,"£",null,null,null,null,null,0,null,null,null,null,null,null,null,null,null,null,null,0,null,null,null,null,null,null,null,null,null,null,null,0,null,null,null,null,null,null,null,null,null,null,null,0]
[null,null,null,null,null,null,null,null,null,null,null,null,null,null,null,null,null,null,null,null,null,null,null,null,null,null,null,null,null,null,null,null,null,null,null,null,null,null,null,null,null,null,null,null,null,null,null,null,null,null,null,null,null,null,null,null,null,null,null,"£",null,null,null,null,null,"£",null,null,null,null,null,"£",null,null,null,null,null,"£",null,null,null,null,null,"£",null,null,null,null,null,"£",null,null,null,null,null,0,null,null,null,null,null,null,null,null,null,null,null,0,null,null,null,null,null,null,null,null,null,null,null,0,null,null,null,null,null,null,null,null,null,null,null,0]
[null,null,null,null,null,null,null,null,null,null,null,null,null,null,null,null,null,null,null,null,null,null,null,null,null,null,null,null,null,null,null,null,null,null,null,null,null,null,null,null,null,null,null,null,null,null,null,null,null,null,null,null,null,null,null,null,null,null,null,"£",null,null,null,null,null,"£",null,null,null,null,null,"£",null,null,null,null,null,"£",null,null,null,null,null,"£",null,null,null,null,null,"£",null,null,null,null,null,0,null,null,null,null,null,null,null,null,null,null,null,0,null,null,null,null,null,null,null,null,null,null,null,0,null,null,null,null,null,null,null,null,null,null,null,0]
[null,null,null,null,null,null,null,null,null,null,null,null,null,null,null,null,null,null,null,null,null,null,null,null,null,null,null,null,null,null,null,null,null,null,null,null,null,null,null,null,null,null,null,null,null,null,null,null,null,null,null,null,null,null,null,null,null,null,null,"£",null,null,null,null,null,"£",null,null,null,null,null,"£",null,null,null,null,null,"£",null,null,null,null,null,"£",null,null,null,null,null,"£",null,null,null,null,null,0,null,null,null,null,null,null,null,null,null,null,null,0,null,null,null,null,null,null,null,null,null,null,null,0,null,null,null,null,null,null,null,null,null,null,null,0]
[null,null,null,null,null,null,null,null,null,null,null,null,null,null,null,null,null,null,null,null,null,null,null,null,null,null,null,null,null,null,null,null,null,null,null,null,null,null,null,null,null,null,null,null,null,null,null,null,null,null,null,null,null,null,null,null,null,null,null,"£",null,null,null,null,null,"£",null,null,null,null,null,"£",null,null,null,null,null,"£",null,null,null,null,null,"£",null,null,null,null,null,"£",null,null,null,null,null,0,null,null,null,null,null,null,null,null,null,null,null,0,null,null,null,null,null,null,null,null,null,null,null,0,null,null,null,null,null,null,null,null,null,null,null,0]
[null,null,null,null,null,null,null,null,null,null,null,null,null,null,null,null,null,null,null,null,null,null,null,null,null,null,null,null,null,null,null,null,null,null,null,null,null,null,null,null,null,null,null,null,null,null,null,null,null,null,null,null,null,null,null,null,null,null,null,"£",null,null,null,null,null,"£",null,null,null,null,null,"£",null,null,null,null,null,"£",null,null,null,null,null,"£",null,null,null,null,null,"£",null,null,null,null,null,0,null,null,null,null,null,null,null,null,null,null,null,0,null,null,null,null,null,null,null,null,null,null,null,0,null,null,null,null,null,null,null,null,null,null,null,0]
[null,null,null,null,null,null,null,null,null,null,null,null,null,null,null,null,null,null,null,null,null,null,null,null,null,null,null,null,null,null,null,null,null,null,null,null,null,null,null,null,null,null,null,null,null,null,null,null,null,null,null,null,null,null,null,null,null,null,null,"£",null,null,null,null,null,"£",null,null,null,null,null,"£",null,null,null,null,null,"£",null,null,null,null,null,"£",null,null,null,null,null,"£",null,null,null,null,null,0,null,null,null,null,null,null,null,null,null,null,null,0,null,null,null,null,null,null,null,null,null,null,null,0,null,null,null,null,null,null,null,null,null,null,null,0]
[null,null,null,null,null,null,null,null,null,null,null,null,null,null,null,null,null,null,null,null,null,null,null,null,null,null,null,null,null,null,null,null,null,null,null,null,null,null,null,null,null,null,null,null,null,null,null,null,null,null,null,null,null,null,null,null,null,null,null,"£",null,null,null,null,null,"£",null,null,null,null,null,"£",null,null,null,null,null,"£",null,null,null,null,null,"£",null,null,null,null,null,"£",null,null,null,null,null,0,null,null,null,null,null,null,null,null,null,null,null,0,null,null,null,null,null,null,null,null,null,null,null,0,null,null,null,null,null,null,null,null,null,null,null,0]
[null,null,null,null,null,null,null,null,null,null,null,null,null,null,null,null,null,null,null,null,null,null,null,null,null,null,null,null,null,null,null,null,null,null,null,null,null,null,null,null,null,null,null,null,null,null,null,null,null,null,null,null,null,null,null,null,null,null,null,"£",null,null,null,null,null,"£",null,null,null,null,null,"£",null,null,null,null,null,"£",null,null,null,null,null,"£",null,null,null,null,null,"£",null,null,null,null,null,0,null,null,null,null,null,null,null,null,null,null,null,0,null,null,null,null,null,null,null,null,null,null,null,0,null,null,null,null,null,null,null,null,null,null,null,0]
[null,null,null,null,null,null,null,null,null,null,null,null,null,null,null,null,null,null,null,null,null,null,null,null,null,null,null,null,null,null,null,null,null,null,null,null,null,null,null,null,null,null,null,null,null,null,null,null,null,null,null,null,null,null,null,null,null,null,null,"£",null,null,null,null,null,"£",null,null,null,null,null,"£",null,null,null,null,null,"£",null,null,null,null,null,"£",null,null,null,null,null,"£",null,null,null,null,null,0,null,null,null,null,null,null,null,null,null,null,null,0,null,null,null,null,null,null,null,null,null,null,null,0,null,null,null,null,null,null,null,null,null,null,null,0]
[null,null,null,null,null,null,null,null,null,null,null,null,null,null,null,null,null,null,null,null,null,null,null,null,null,null,null,null,null,null,null,null,null,null,null,null,null,null,null,null,null,null,null,null,null,null,null,null,null,null,null,null,null,null,null,null,null,null,null,"£",null,null,null,null,null,"£",null,null,null,null,null,"£",null,null,null,null,null,"£",null,null,null,null,null,"£",null,null,null,null,null,"£",null,null,null,null,null,0,null,null,null,null,null,null,null,null,null,null,null,0,null,null,null,null,null,null,null,null,null,null,null,0,null,null,null,null,null,null,null,null,null,null,null,0]
[null,null,null,null,null,null,null,null,null,null,null,null,null,null,null,null,null,null,null,null,null,null,null,null,null,null,null,null,null,null,null,null,null,null,null,null,null,null,null,null,null,null,null,null,null,null,null,null,null,null,null,null,null,null,null,null,null,null,null,"£",null,null,null,null,null,"£",null,null,null,null,null,"£",null,null,null,null,null,"£",null,null,null,null,null,"£",null,null,null,null,null,"£",null,null,null,null,null,0,null,null,null,null,null,null,null,null,null,null,null,0,null,null,null,null,null,null,null,null,null,null,null,0,null,null,null,null,null,null,null,null,null,null,null,0]
[null,null,null,null,null,null,null,null,null,null,null,null,null,null,null,null,null,null,null,null,null,null,null,null,null,null,null,null,null,null,null,null,null,null,null,null,null,null,null,null,null,null,null,null,null,null,null,null,null,null,null,null,null,null,null,null,null,null,null,"£",null,null,null,null,null,"£",null,null,null,null,null,"£",null,null,null,null,null,"£",null,null,null,null,null,"£",null,null,null,null,null,"£",null,null,null,null,null,0,null,null,null,null,null,null,null,null,null,null,null,0,null,null,null,null,null,null,null,null,null,null,null,0,null,null,null,null,null,null,null,null,null,null,null,0]
[null,null,null,null,null,null,null,null,null,null,null,null,null,null,null,null,null,null,null,null,null,null,null,null,null,null,null,null,null,null,null,null,null,null,null,null,null,null,null,null,null,null,null,null,null,null,null,null,null,null,null,null,null,null,null,null,null,null,null,"£",null,null,null,null,null,"£",null,null,null,null,null,"£",null,null,null,null,null,"£",null,null,null,null,null,"£",null,null,null,null,null,"£",null,null,null,null,null,0,null,null,null,null,null,null,null,null,null,null,null,0,null,null,null,null,null,null,null,null,null,null,null,0,null,null,null,null,null,null,null,null,null,null,null,0]
[null,null,null,null,null,null,null,null,null,null,null,null,null,null,null,null,null,null,null,null,null,null,null,null,null,null,null,null,null,null,null,null,null,null,null,null,null,null,null,null,null,null,null,null,null,null,null,null,null,null,null,null,null,null,null,null,null,null,null,"£",null,null,null,null,null,"£",null,null,null,null,null,"£",null,null,null,null,null,"£",null,null,null,null,null,"£",null,null,null,null,null,"£",null,null,null,null,null,0,null,null,null,null,null,null,null,null,null,null,null,0,null,null,null,null,null,null,null,null,null,null,null,0,null,null,null,null,null,null,null,null,null,null,null,0]
[null,null,null,null,null,null,null,null,null,null,null,null,null,null,null,null,null,null,null,null,null,null,null,null,null,null,null,null,null,null,null,null,null,null,null,null,null,null,null,null,null,null,null,null,null,null,null,null,null,null,null,null,null,null,null,null,null,null,null,"£",null,null,null,null,null,"£",null,null,null,null,null,"£",null,null,null,null,null,"£",null,null,null,null,null,"£",null,null,null,null,null,"£",null,null,null,null,null,0,null,null,null,null,null,null,null,null,null,null,null,0,null,null,null,null,null,null,null,null,null,null,null,0,null,null,null,null,null,null,null,null,null,null,null,0]
[null,null,null,null,null,null,null,null,null,null,null,null,null,null,null,null,null,null,null,null,null,null,null,null,null,null,null,null,null,null,null,null,null,null,null,null,null,null,null,null,null,null,null,null,null,null,null,null,null,null,null,null,null,null,null,null,null,null,null,"£",null,null,null,null,null,"£",null,null,null,null,null,"£",null,null,null,null,null,"£",null,null,null,null,null,"£",null,null,null,null,null,"£",null,null,null,null,null,0,null,null,null,null,null,null,null,null,null,null,null,0,null,null,null,null,null,null,null,null,null,null,null,0,null,null,null,null,null,null,null,null,null,null,null,0]
[null,null,null,null,null,null,null,null,null,null,null,null,null,null,null,null,null,null,null,null,null,null,null,null,null,null,null,null,null,null,null,null,null,null,null,null,null,null,null,null,null,null,null,null,null,null,null,null,null,null,null,null,null,null,null,null,null,null,null,"£",null,null,null,null,null,"£",null,null,null,null,null,"£",null,null,null,null,null,"£",null,null,null,null,null,"£",null,null,null,null,null,"£",null,null,null,null,null,0,null,null,null,null,null,null,null,null,null,null,null,0,null,null,null,null,null,null,null,null,null,null,null,0,null,null,null,null,null,null,null,null,null,null,null,0]
[null,null,null,null,null,null,null,null,null,null,null,null,null,null,null,null,null,null,null,null,null,null,null,null,null,null,null,null,null,null,null,null,null,null,null,null,null,null,null,null,null,null,null,null,null,null,null,null,null,null,null,null,null,null,null,null,null,null,null,"£",null,null,null,null,null,"£",null,null,null,null,null,"£",null,null,null,null,null,"£",null,null,null,null,null,"£",null,null,null,null,null,"£",null,null,null,null,null,0,null,null,null,null,null,null,null,null,null,null,null,0,null,null,null,null,null,null,null,null,null,null,null,0,null,null,null,null,null,null,null,null,null,null,null,0]
[null,null,null,null,null,null,null,null,null,null,null,null,null,null,null,null,null,null,null,null,null,null,null,null,null,null,null,null,null,null,null,null,null,null,null,null,null,null,null,null,null,null,null,null,null,null,null,null,null,null,null,null,null,null,null,null,null,null,null,"£",null,null,null,null,null,"£",null,null,null,null,null,"£",null,null,null,null,null,"£",null,null,null,null,null,"£",null,null,null,null,null,"£",null,null,null,null,null,0,null,null,null,null,null,null,null,null,null,null,null,0,null,null,null,null,null,null,null,null,null,null,null,0,null,null,null,null,null,null,null,null,null,null,null,0]
[null,null,null,null,null,null,null,null,null,null,null,null,null,null,null,null,null,null,null,null,null,null,null,null,null,null,null,null,null,null,null,null,null,null,null,null,null,null,null,null,null,null,null,null,null,null,null,null,null,null,null,null,null,null,null,null,null,null,null,"£",null,null,null,null,null,"£",null,null,null,null,null,"£",null,null,null,null,null,"£",null,null,null,null,null,"£",null,null,null,null,null,"£",null,null,null,null,null,0,null,null,null,null,null,null,null,null,null,null,null,0,null,null,null,null,null,null,null,null,null,null,null,0,null,null,null,null,null,null,null,null,null,null,null,0]
[null,null,null,null,null,null,null,null,null,null,null,null,null,null,null,null,null,null,null,null,null,null,null,null,null,null,null,null,null,null,null,null,null,null,null,null,null,null,null,null,null,null,null,null,null,null,null,null,null,null,null,null,null,null,null,null,null,null,null,"£",null,null,null,null,null,"£",null,null,null,null,null,"£",null,null,null,null,null,"£",null,null,null,null,null,"£",null,null,null,null,null,"£",null,null,null,null,null,0,null,null,null,null,null,null,null,null,null,null,null,0,null,null,null,null,null,null,null,null,null,null,null,0,null,null,null,null,null,null,null,null,null,null,null,0]
[null,null,null,null,null,null,null,null,null,null,null,null,null,null,null,null,null,null,null,null,null,null,null,null,null,null,null,null,null,null,null,null,null,null,null,null,null,null,null,null,null,null,null,null,null,null,null,null,null,null,null,null,null,null,null,null,null,null,null,"£",null,null,null,null,null,"£",null,null,null,null,null,"£",null,null,null,null,null,"£",null,null,null,null,null,"£",null,null,null,null,null,"£",null,null,null,null,null,0,null,null,null,null,null,null,null,null,null,null,null,0,null,null,null,null,null,null,null,null,null,null,null,0,null,null,null,null,null,null,null,null,null,null,null,0]
[null,null,null,null,null,null,null,null,null,null,null,null,null,null,null,null,null,null,null,null,null,null,null,null,null,null,null,null,null,null,null,null,null,null,null,null,null,null,null,null,null,null,null,null,null,null,null,null,null,null,null,null,null,null,null,null,null,null,null,"£",null,null,null,null,null,"£",null,null,null,null,null,"£",null,null,null,null,null,"£",null,null,null,null,null,"£",null,null,null,null,null,"£",null,null,null,null,null,0,null,null,null,null,null,null,null,null,null,null,null,0,null,null,null,null,null,null,null,null,null,null,null,0,null,null,null,null,null,null,null,null,null,null,null,0]
[null,null,null,null,null,null,null,null,null,null,null,null,null,null,null,null,null,null,null,null,null,null,null,null,null,null,null,null,null,null,null,null,null,null,null,null,null,null,null,null,null,null,null,null,null,null,null,null,null,null,null,null,null,null,null,null,null,null,null,"£",null,null,null,null,null,"£",null,null,null,null,null,"£",null,null,null,null,null,"£",null,null,null,null,null,"£",null,null,null,null,null,"£",null,null,null,null,null,0,null,null,null,null,null,null,null,null,null,null,null,0,null,null,null,null,null,null,null,null,null,null,null,0,null,null,null,null,null,null,null,null,null,null,null,0]
[null,null,null,null,null,null,null,null,null,null,null,null,null,null,null,null,null,null,null,null,null,null,null,null,null,null,null,null,null,null,null,null,null,null,null,null,null,null,null,null,null,null,null,null,null,null,null,null,null,null,null,null,null,null,null,null,null,null,null,"£",null,null,null,null,null,"£",null,null,null,null,null,"£",null,null,null,null,null,"£",null,null,null,null,null,"£",null,null,null,null,null,"£",null,null,null,null,null,0,null,null,null,null,null,null,null,null,null,null,null,0,null,null,null,null,null,null,null,null,null,null,null,0,null,null,null,null,null,null,null,null,null,null,null,0]
[null,null,null,null,null,null,null,null,null,null,null,null,null,null,null,null,null,null,null,null,null,null,null,null,null,null,null,null,null,null,null,null,null,null,null,null,null,null,null,null,null,null,null,null,null,null,null,null,null,null,null,null,null,null,null,null,null,null,null,"£",null,null,null,null,null,"£",null,null,null,null,null,"£",null,null,null,null,null,"£",null,null,null,null,null,"£",null,null,null,null,null,"£",null,null,null,null,null,0,null,null,null,null,null,null,null,null,null,null,null,0,null,null,null,null,null,null,null,null,null,null,null,0,null,null,null,null,null,null,null,null,null,null,null,0]
[null,null,null,null,null,null,null,null,null,null,null,null,null,null,null,null,null,null,null,null,null,null,null,null,null,null,null,null,null,null,null,null,null,null,null,null,null,null,null,null,null,null,null,null,null,null,null,null,null,null,null,null,null,null,null,null,null,null,null,"£",null,null,null,null,null,"£",null,null,null,null,null,"£",null,null,null,null,null,"£",null,null,null,null,null,"£",null,null,null,null,null,"£",null,null,null,null,null,0,null,null,null,null,null,null,null,null,null,null,null,0,null,null,null,null,null,null,null,null,null,null,null,0,null,null,null,null,null,null,null,null,null,null,null,0]
[null,null,null,null,null,null,null,null,null,null,null,null,null,null,null,null,null,null,null,null,null,null,null,null,null,null,null,null,null,null,null,null,null,null,null,null,null,null,null,null,null,null,null,null,null,null,null,null,null,null,null,null,null,null,null,null,null,null,null,"£",null,null,null,null,null,"£",null,null,null,null,null,"£",null,null,null,null,null,"£",null,null,null,null,null,"£",null,null,null,null,null,"£",null,null,null,null,null,0,null,null,null,null,null,null,null,null,null,null,null,0,null,null,null,null,null,null,null,null,null,null,null,0,null,null,null,null,null,null,null,null,null,null,null,0]
[null,null,null,null,null,null,null,null,null,null,null,null,null,null,null,null,null,null,null,null,null,null,null,null,null,null,null,null,null,null,null,null,null,null,null,null,null,null,null,null,null,null,null,null,null,null,null,null,null,null,null,null,null,null,null,null,null,null,null,"£",null,null,null,null,null,"£",null,null,null,null,null,"£",null,null,null,null,null,"£",null,null,null,null,null,"£",null,null,null,null,null,"£",null,null,null,null,null,0,null,null,null,null,null,null,null,null,null,null,null,0,null,null,null,null,null,null,null,null,null,null,null,0,null,null,null,null,null,null,null,null,null,null,null,0]
[null,null,null,null,null,null,null,null,null,null,null,null,null,null,null,null,null,null,null,null,null,null,null,null,null,null,null,null,null,null,null,null,null,null,null,null,null,null,null,null,null,null,null,null,null,null,null,null,null,null,null,null,null,null,null,null,null,null,null,"£",null,null,null,null,null,"£",null,null,null,null,null,"£",null,null,null,null,null,"£",null,null,null,null,null,"£",null,null,null,null,null,"£",null,null,null,null,null,0,null,null,null,null,null,null,null,null,null,null,null,0,null,null,null,null,null,null,null,null,null,null,null,0,null,null,null,null,null,null,null,null,null,null,null,0]
["(1) Cochez les services de validations concernés.\n(2) Indiquez le plafond ou précisez \"ILLIMITE\""]
[]
["Je reconnais avoir reçu, pris connaissance et accepter sans réserve les Conditions Générales BNP Net Evolution et ses annexes dans leur version en vigueur au jour de la signature des présentes, dont un exemplaire m’a été remis préalablement à celle-ci, qui forment un tout indissociable et indivisible avec les présentes Conditions Particulières.\nLes présentes Conditions Particulières annulent et remplacent celles qui auraient été convenues antérieurement avec la Banque, pour le(s) même(s) prestation(s) de service et pour le(s) même(s) point(s) de vente et qui auraient le même objet."]
["Les données personnelles/informations recueillies dans le cadre du Contrat sont obligatoires et seront utilisées par la Banque, responsable du traitement, pour les seules nécessités de la gestion interne de BNP Paribas, de la gestion et la mise en œuvre du Service et des fonctionnalités souscrites dans ce cadre, de la mise en relation le cas échéant avec le(s) Prestataire(s) proposant un Service Additionnel, de la prospection et l’animation commerciale, des études statistiques, de l’évaluation et la gestion du risque, de la sécurité et la prévention des impayés et de la fraude, du recouvrement et pour satisfaire aux obligations légales et réglementaires. Elles pourront donner lieu à l'exercice du droit d'accès, de rectification et d’opposition dans les conditions de la loi du 6 janvier 1978 modifiée, par courrier adressé à BNP Paribas, APAC TDC Val de Marne, TSA 30233,94729 FONTENAY-SOUS-BOIS Cedex."]
["Les données personnelles/informations ainsi transmises conformément aux finalités ci-dessus peuvent, à l’occasion de cette opération, faire l’objet d’un transfert dans un pays de l’Union Européenne ou hors Union Européenne. Dans le cadre d’un transfert vers un pays hors Union Européenne, des règles assurant la protection et la sécurité de ces données ont été mises en place. Le détail de ces règles et des informations relatives au transfert est disponible en consultant le site de la Banque (http://www.bnpparibas.net) ou sur simple demande adressée à BNP Paribas, APAC TDC Val de Marne, TSA 30233, 94729 FONTENAY-SOUS-BOIS Cedex."]
["Lorsque le Client a opté pour la Carte TRANSFERT SECURISE comme mode d'authentification forte, il reconnaît avoir pris connaissance préalablement à la signature des présentes des Conditions de Fonctionnement de la Carte TRANSFERT SECURISE et déclare en accepter toutes les dispositions sans réserves. "]
[]
["Fait à ",null,null,"PARIS",null,null,null,null,null,null,null,null,null,null,null,null,null,null,null,null,null,null,null,null,null,null,null,null,null,null,null,null,null,null,"le ",null,null,null,"2015-06-09",null,null,null,null,null,null,null,null,null,null,null,null,null,null,null,null,null,null,null,null,null,null,null,null,null,null,"en 2 exemplaires,"]
[]
["Le client ",null,null,null,null,null,null,null,null,"Nom",null,null,null,null,null,null,null,null,null,null,"THOMAS Thibault",null,null,null,null,null,null,null,null,null,null,null,null,null,null,null,null,null,null,null,null,null,null,null,null,null,null,null,null,null,null,null,null,null,null,null,null,null,null,null,null,null,null,null,null,"Pour BNP Paribas",null,null,null,null,null,null,null,null,null,null,null,null,null,null,null,null,null,null,null,null,null,null,null,null,"Nom",null,null,null,null,null,null,null,"VARADY Ivan"]
[]
[]
[]
[]
[]
[]
[]
[]
["FORMULAIRE RELATIF AU DELAI DE RETRACTATION PREVU PAR L'ARTICLE L. 341-16 DU CODE MONETAIRE ET FINANCIER"]
[]
["Formulaire à renvoyer au plus tard 14 jours à compter de la conclusion du contrat par lettre recommandée avec avis de réception à BNP Paribas à l'adresse de l'agence où sont domicilés vos comptes."]
[]
["Contrat : BNP NET EVOLUTION."]
[]
["Cette rétractation n’est valable que si elle est adressée avant l’expiration du délai de 14 jours prévu à l’article L. 341-16 du code monétaire et financier, lisiblement et parfaitement remplie."]
[]
["Je soussigné (1)"]
["déclare renoncer  à : "]
[]
["£","L'OPTION 1 :"]
[null,"Au contrat Echange de BNP NET EVOLUTION (2)"]
[]
[]
["£","L'OPTION 2 :"]
[null,"A l'un des services optionnels suivants souscrits dans le cadre du contrat BNP NET EVOLUTION (3)"]
[null,"£",null,null,null,"Visualisation des virements Confidentiels"]
[null,"£",null,null,null,"Bons a payer (Consultation et réponses aux LCR)"]
[null,"£",null,null,null,"Consultation des encours de crédit, avance sur factures, financements"]
[null,"£",null,null,null,"Souscription d'OPCVM"]
[null,"£",null,null,null,"Consultation conmpte(s) banques tierces"]
[]
["Que j'avais conclu le :",null,null,null,null,null,null,null,null,null,null,null,null,null,null,null,null,null,null,null,null,null,null,null,null,null,null,null,null,null,null,null,null,null,null,"avec BNP Paribas"]
["dont le siège social est à Paris 9ème, 16, boulevard des Italiens."]
[]
["Date : "]
[]
["Signature du client (4) : "]
[]
[]
[]
[]
["(1) Nom et prénom du titulaire du contrat objet de la rétractation. \nSi le titulaire est une personne morale, indiquer : \n \"Je soussigné [prénom, nom] agissant en qualité de …. pour le compte de la société …[forme juridique, dénomination] »"]
[]
["(2) La rétractation sur le contrat BNP NET EVOLUTION souscrit par le client entraînera la résiliation du contrat dans  toutes ses composantes \n( y compris tous les services optionnels retenus par le client)."]
[]
["(3) La rétractation sur ces services optionnels n’entraîne pas la résiliation du contrat BNP NET EVOLUTION: le contrat BNP NET EVOLUTION  est alors maintenu sans le(s) service(s) optionnel(s) objet(s) de la rétractation. En revanche cette rétractation a une incidence sur le tarif mensuel facturé."]
[]
["(4) Si le client est une  personne morale : signature de son représentant +cachet de la société."]